{"text_format":"1","workbook":"xlsx","n_sheets":16,"sheets":["Economic Times","Money Control","Summary","Delete Break","tatamotors BS","tatamotors PL","tatamotors Ratios","tatamotors CF","htmedia BS","htmedia PL","htmedia Ratios","htmedia CF","relianceindustries BS","relianceindustries PL","relianceindustries Ratios","relianceindustries CF"],"not_rendered":{"charts":0,"images":0,"macros":1,"external_links":0,"defined_names":11,"comments":0,"pivot_tables":0},"unopened":[],"bounds":{"document_bytes":16777216,"sheet_cells":100000,"rows_first":2000,"rows_last":500,"rows_between":2000,"halvings":0,"cell_chars":16384,"cell_head_chars":4096},"cells_cut":0,"cells_raw":0,"read":"whole","date_system":"1900"}

{"sheet":"Economic Times","index":0,"n_rows":8,"n_cols":1,"rows_kept":8,"cut":false,"hidden":false,"merged":[]}
["https://economictimes.indiatimes.com/ht-media-ltd/quarterly/companyid-16087.cms"]
["https://economictimes.indiatimes.com/ht-media-ltd/profitandlose/companyid-16087.cms"]
["https://economictimes.indiatimes.com/ht-media-ltd/cashflow/companyid-16087.cms"]
["https://economictimes.indiatimes.com/ht-media-ltd/balancesheet/companyid-16087.cms"]
[]
["https://economictimes.indiatimes.com/tata-motors-ltd/profitandlose/companyid-12934.cms"]
["https://economictimes.indiatimes.com/reliance-industries-ltd/balancesheet/companyid-13215.cms"]
["https://economictimes.indiatimes.com/bharti-airtel-ltd/balancesheet/companyid-2718.cms"]

{"sheet":"Money Control","index":1,"n_rows":23,"n_cols":16,"rows_kept":23,"cut":false,"hidden":false,"merged":[]}
[null,"URL's without adjustment",null,null,"https://www.moneycontrol.com/financials/tatamotors/balance-sheet/TM03"]
[null,null,null,null,"https://www.moneycontrol.com/financials/tatamotors/profit-lossVI/TM03"]
[]
[null,null,null,null,"https://www.moneycontrol.com/financials/htmedia/balance-sheet/HT"]
[null,null,null,null,"https://www.moneycontrol.com/financials/relianceindustries/ratios/RI"]
[null,null,null,null,"https://www.moneycontrol.com/financials/relianceindustries/cash-flow/RI"]
[]
[]
[null,null,null,null,"https://www.moneycontrol.com/financials/"]
[null,null,null,null,"/balance-sheet/"]
[null,null,null,null,"/profit-lossVI/"]
[null,null,null,null,"/ratios/"]
[null,null,null,null,"/cash-flow/"]
[]
[null,null,null,null,"Financial Statement Code",null,null,4,"FS Code",null,null,null,null,null,"Company Code",3]
[]
[null,null,null,{"$f":"Company&\" BS\"","v":"relianceindustries BS"},{"$f":"$E$9&Company&E10&Symbol","v":"https://www.moneycontrol.com/financials/relianceindustries/balance-sheet/RI"},null,null,null,null,null,null,null,null,null,"Symbol","Company"]
[null,null,null,{"$f":"Company&\" PL\"","v":"relianceindustries PL"},{"$f":"$E$9&Company&E11&Symbol","v":"https://www.moneycontrol.com/financials/relianceindustries/profit-lossVI/RI"},null,null,null,null,null,null,null,null,null,"TM03","tatamotors"]
[null,null,null,{"$f":"Company&\" Ratios\"","v":"relianceindustries Ratios"},{"$f":"$E$9&Company&E12&Symbol","v":"https://www.moneycontrol.com/financials/relianceindustries/ratios/RI"},null,null,null,null,null,null,null,null,null,"HT","htmedia"]
[null,null,null,{"$f":"Company&\" CF\"","v":"relianceindustries CF"},{"$f":"$E$9&Company&E13&Symbol","v":"https://www.moneycontrol.com/financials/relianceindustries/cash-flow/RI"},null,null,null,null,null,null,null,null,null,"RI","relianceindustries"]
[]
["Applied URL",null,null,{"$f":"INDEX(D17:D20,H15)","v":"relianceindustries CF"},{"$f":"INDEX(E17:E20,H15)","v":"https://www.moneycontrol.com/financials/relianceindustries/cash-flow/RI"},null,null,null,null,null,null,null,null,null,"Symbol","Company"]
[null,null,null,null,null,null,null,null,null,null,null,null,null,null,{"$f":"INDEX(O18:O20,$P$15)","v":"RI"},{"$f":"INDEX(P18:P20,$P$15)","v":"relianceindustries"}]

{"sheet":"Summary","index":2,"n_rows":17,"n_cols":12,"rows_kept":17,"cut":false,"hidden":false,"merged":[]}
[]
[null,null,"Return On Capital Employed(%)"]
[null,null,"Return On Net Worth(%)"]
[null,null,"Investment Valuation Ratios",null,null,null,"Return On Capital Employed(%)"]
[null,null,null,null,null,null,null,"Index"]
[null,null,null,null,null,null,"Match"]
[null,null,null,null,null,null,{"$f":"MATCH($C$4,INDIRECT(\"'\"&E8&\"'!A:A\"),0)-2","v":367},{"$f":"INDEX(INDIRECT(\"'\"&$E8&\"'!B:B\"),$G7)","v":"Mar '18"},{"$f":"INDEX(INDIRECT(\"'\"&$E8&\"'!C:C\"),$G7)","v":"Mar '17"},{"$f":"INDEX(INDIRECT(\"'\"&$E8&\"'!D:D\"),$G7)","v":"Mar '16"},{"$f":"INDEX(INDIRECT(\"'\"&$E8&\"'!E:E\"),$G7)","v":"Mar '15"},{"$f":"INDEX(INDIRECT(\"'\"&$E8&\"'!F:F\"),$G7)","v":"Mar '14"}]
[null,null,{"$f":"'Money Control'!P18","v":"tatamotors"}," Ratios",{"$f":"C8&D8","v":"tatamotors Ratios"},null,{"$f":"MATCH($G$4,INDIRECT(\"'\"&E8&\"'!A:A\"),0)","v":384},{"$f":"INDEX(INDIRECT(\"'\"&$E8&\"'!B:B\"),$G8)","v":4.84},{"$f":"INDEX(INDIRECT(\"'\"&$E8&\"'!C:C\"),$G8)","v":-1.1100000000000001},{"$f":"INDEX(INDIRECT(\"'\"&$E8&\"'!D:D\"),$G8)","v":5.38},{"$f":"INDEX(INDIRECT(\"'\"&$E8&\"'!E:E\"),$G8)","v":-5.61},{"$f":"INDEX(INDIRECT(\"'\"&$E8&\"'!F:F\"),$G8)","v":2.52}]
[null,null,{"$f":"'Money Control'!P19","v":"htmedia"}," Ratios",{"$f":"C9&D9","v":"htmedia Ratios"},null,{"$f":"MATCH($G$4,INDIRECT(\"'\"&E9&\"'!A:A\"),0)","v":384},{"$f":"INDEX(INDIRECT(\"'\"&$E9&\"'!B:B\"),$G9)","v":11.25},{"$f":"INDEX(INDIRECT(\"'\"&$E9&\"'!C:C\"),$G9)","v":5.31},{"$f":"INDEX(INDIRECT(\"'\"&$E9&\"'!D:D\"),$G9)","v":6.35},{"$f":"INDEX(INDIRECT(\"'\"&$E9&\"'!E:E\"),$G9)","v":10.1},{"$f":"INDEX(INDIRECT(\"'\"&$E9&\"'!F:F\"),$G9)","v":13.73}]
[null,null,{"$f":"'Money Control'!P20","v":"relianceindustries"}," Ratios","relianceindustries Ratios",null,{"$f":"MATCH($G$4,INDIRECT(\"'\"&E10&\"'!A:A\"),0)","v":384},{"$f":"INDEX(INDIRECT(\"'\"&$E10&\"'!B:B\"),$G10)","v":12.24},{"$f":"INDEX(INDIRECT(\"'\"&$E10&\"'!C:C\"),$G10)","v":11.16},11.47,{"$f":"INDEX(INDIRECT(\"'\"&$E10&\"'!E:E\"),$G10)","v":10.42},10.97]
[]
[null,null,null,null,null,null,{"$f":"C3","v":"Return On Net Worth(%)"}]
[null,null,null,null,null,null,"Match"]
[null,null,null,null,null,null,{"$f":"MATCH($C$4,INDIRECT(\"'\"&E15&\"'!A:A\"),0)-2","v":367},{"$f":"INDEX(INDIRECT(\"'\"&$E15&\"'!B:B\"),$G14)","v":"Mar '18"},{"$f":"INDEX(INDIRECT(\"'\"&$E15&\"'!C:C\"),$G14)","v":"Mar '17"},{"$f":"INDEX(INDIRECT(\"'\"&$E15&\"'!D:D\"),$G14)","v":"Mar '16"},{"$f":"INDEX(INDIRECT(\"'\"&$E15&\"'!E:E\"),$G14)","v":"Mar '15"},{"$f":"INDEX(INDIRECT(\"'\"&$E15&\"'!F:F\"),$G14)","v":"Mar '14"}]
[null,null,{"$f":"C8","v":"tatamotors"}," Ratios",{"$f":"C15&D15","v":"tatamotors Ratios"},null,{"$f":"MATCH($G$12,INDIRECT(\"'\"&E15&\"'!A:A\"),0)","v":385},{"$f":"INDEX(INDIRECT(\"'\"&$E15&\"'!B:B\"),$G15)","v":-5.13},{"$f":"INDEX(INDIRECT(\"'\"&$E15&\"'!C:C\"),$G15)","v":-11.48},{"$f":"INDEX(INDIRECT(\"'\"&$E15&\"'!D:D\"),$G15)","v":-0.26},{"$f":"INDEX(INDIRECT(\"'\"&$E15&\"'!E:E\"),$G15)","v":-31.93},{"$f":"INDEX(INDIRECT(\"'\"&$E15&\"'!F:F\"),$G15)","v":1.74}]
[null,null,{"$f":"C9","v":"htmedia"}," Ratios",{"$f":"C16&D16","v":"htmedia Ratios"},null,{"$f":"MATCH($G$12,INDIRECT(\"'\"&E16&\"'!A:A\"),0)","v":385},{"$f":"INDEX(INDIRECT(\"'\"&$E16&\"'!B:B\"),$G16)","v":11.25},{"$f":"INDEX(INDIRECT(\"'\"&$E16&\"'!C:C\"),$G16)","v":3.62},{"$f":"INDEX(INDIRECT(\"'\"&$E16&\"'!D:D\"),$G16)","v":6.78},{"$f":"INDEX(INDIRECT(\"'\"&$E16&\"'!E:E\"),$G16)","v":7.56},{"$f":"INDEX(INDIRECT(\"'\"&$E16&\"'!F:F\"),$G16)","v":11.04}]
[null,null,"relianceindustries"," Ratios","relianceindustries Ratios",null,{"$f":"MATCH($G$12,INDIRECT(\"'\"&E17&\"'!A:A\"),0)","v":385},{"$f":"INDEX(INDIRECT(\"'\"&$E17&\"'!B:B\"),$G17)","v":10.68},{"$f":"INDEX(INDIRECT(\"'\"&$E17&\"'!C:C\"),$G17)","v":10.89},11.41,10.51,11.15]

{"sheet":"Delete Break","index":3,"n_rows":0,"n_cols":0,"rows_kept":0,"cut":false,"hidden":false,"merged":[]}

{"sheet":"tatamotors BS","index":4,"n_rows":455,"n_cols":6,"rows_kept":455,"cut":false,"hidden":false,"merged":[]}
["English"]
["Hindi"]
["Gujarati"]
[]
["App"]
[]
["Subscription"]
["Specials"]
[]
[]
[]
[]
[]
[]
[]
[]
[]
[]
[]
["Quotes "]
["NAVs"]
["Commodities "]
["Futures & Options "]
["News "]
["Forum "]
["Notices "]
["Videos "]
["Glossary "]
["All "]
[]
["Stocks"]
["Feedback"]
["Log In"]
[]
["My Profile (Unverified)"]
["My Portfolio"]
["My Watchlist"]
["My Messages"]
["My Alerts"]
[]
["Sign Up"]
["Logout"]
[]
[]
[]
[]
[]
[]
[]
["Get App"]
["Log In"]
["Sign Up"]
["My Portfolio"]
["My Watchlist"]
["My Messages"]
["Sign out"]
[]
["Quotes "]
["NAVs"]
["Commodities "]
["Futures & Options "]
["News "]
["Forum "]
["Notices "]
["Videos "]
["Glossary "]
["All "]
["Auriferous Aqua Farma , 519363"]
["View All "]
["Select Language"]
["English"]
["à¤¹à¤¿à¤‚à¤¦à¥€"]
["à¤—à¥\u0081à¤œà¤°à¤¾à¤¤à¥€"]
["Home"]
["Lok Sabha Election 2019 "]
[]
["Stock Premier League "]
[]
["News"]
["Markets"]
["Portfolio"]
["Watchlist"]
["Forum"]
["Indian Indices"]
["Global Indices"]
["MoneySavers"]
["Live TV & Shows"]
["Video "]
[]
["Commodities"]
["Currencies"]
["Mutual Funds"]
["Personal Finance"]
["Podcast "]
[]
["Cryptocurrency"]
["Subscription"]
["Specials"]
["Invest Now"]
["Master Your Money"]
["SME Special"]
["Real Assets"]
["Travel Cafe"]
["Tech Control"]
["Home"]
[]
["Companies"]
["Economy"]
["Property"]
["Politics"]
["Auto"]
["Cricket"]
["World"]
["Announcements"]
["News"]
[]
["Business"]
["Markets"]
["Stocks"]
["Economy"]
["Research"]
["Mutual Funds"]
["Personal Finance"]
["Property"]
["Auto"]
["IPO"]
["Politics"]
["India"]
["World"]
["BFSI Tech "]
[]
["Consumer Tech"]
["Startups"]
["Opinion "]
[]
["Lok Sabha Election 2019"]
[]
["Home"]
["Opinion"]
["Videos"]
["Photos"]
["Podcasts"]
["Modinomics Review"]
["Millennial News"]
["Election Dates"]
["Lok Sabha News"]
["Assembly Election 2019"]
["Markets"]
[]
["Home"]
["Pre-Market"]
["Advice"]
["Technicals"]
["F&O"]
["Earnings"]
["IPO"]
["All Stats"]
["Indian Indices "]
[]
["Global Markets"]
["Currencies"]
["Crypto"]
["Bonds"]
["Broker Research"]
["Tools"]
["Terminal"]
["Mutual Funds"]
[]
["Home"]
["Performance Tracker"]
["Top Ranked Funds"]
["ETFs"]
["NFO"]
["Learn"]
["Evaluate"]
["Track"]
["Tools"]
["SEBI Re-categorisation"]
["Tax Saving FY19"]
["Commodities"]
["Insurance"]
[]
["Video"]
[]
["Managing Money with Moneycontrol"]
["The Udayan Show"]
["Ideas for Profit"]
["Markets@moneycontrol"]
["Commodities@Moneycontrol"]
["Podcast"]
[]
["Digging Deeper with Moneycontrol"]
["Stock Picks of the Day"]
["Editor's Story of the Day"]
["A Morning Walk Down Dalal Street"]
["An Evening Walk Down Dalal Street"]
["Personal Finance"]
[]
["Home"]
["Investing"]
["Insurance"]
["Banking"]
["Financial Planning"]
["Property"]
["Tools"]
["Video"]
["Ask Expert"]
["Explainer"]
["Portfolio"]
["Forum"]
["Be a Pro "]
[]
[]
["Home"]
["Stock Reports"]
["Ambareesh Balega"]
["CK Narayan"]
["Mitessh Thakkar"]
["Sudarshan Sukhani"]
["T Gnanasekar"]
["Mecklai Financial"]
["Power Your Trade"]
["Investment Watch"]
["Live TV"]
["Hindi"]
["Gujarati"]
["All Stocks"]
["App"]
["Subscriptions"]
["Specials"]
["Feedback"]
["Close Ad"]
["Verify your Moneycontrol account. Please verify your Email ID and Mobile Number today. Verify Now"]
[]
[]
[]
["A Quick View"]
["Stocks in news"]
["Stocks you last visited"]
["Watchlist"]
["Portfolio"]
["Customize Stack 1 Customize Stack 2 Customize Stack 3 Customize Stack 4"]
[]
["Customize"]
["Customize Stacks"]
["Customize Ticker"]
["Detach"]
["Recommendations"]
["1+1=11.Multiply your wealth now with multibaggers from poweryourtrade.com Subscribe Now"]
[]
["Power Your Trade"]
[]
["Quick View"]
["Customize Stacks Customize Ticker Detach Help Feedback"]
["Stocks in News"]
["Stocks Last Visited"]
["Watchlist"]
["Portfolio"]
["SENSEX NIFTY "]
[]
[]
[]
[]
["YOU ARE HERE > MONEYCONTROL > MARKETS > Auto - LCVs & HCVs > Balance Sheet - Tata Motors"]
["Tata Motors"]
["BSE: 500570|NSE: TATAMOTORS|ISIN: INE155A01022|SECTOR: Auto - LCVs & HCVs"]
["SET ALERT"]
["| "]
[]
["ADD TO PORTFOLIO | "]
["WATCHLIST "]
["LIVE"]
["BSE"]
["Apr 18, 16:00"]
[235.9]
["5.35 (2.32%)"]
["VOLUME 2,879,775"]
["LIVE"]
["NSE"]
["Apr 18, 15:59"]
[236.25]
["5.75 (2.49%)"]
["VOLUME 42,451,178"]
[]
["Quote"]
["CHARTS"]
["NEWS"]
["All News"]
["Business"]
["Earnings"]
["Management Interviews"]
["Stock Advice"]
["Research Reports"]
["Sector"]
["COMMENTS"]
["ANNOUNCEMENTS"]
["CORPORATE ACTION"]
["Board Meetings"]
["AGM/EGM"]
["Dividends"]
["Bonus"]
["Rights"]
["Splits"]
["FINANCIALS"]
["Balance Sheet"]
["Profit & Loss"]
["Quarterly Results"]
["Half Yearly Results"]
["Nine Monthly Results"]
["Yearly Results"]
["Cash Flow"]
["Ratios"]
["Capital Structure"]
["Financial Graphs"]
["ANNUAL REPORT"]
["Directors Report"]
["Chairman's Speech"]
["Auditors Report"]
["Notes To Accounts"]
["Accounting Policy"]
["Finished Products"]
["Raw Materials"]
["Investment Structure"]
["SHAREHOLDING"]
["Shareholding Pattern"]
["Mutual Funds Holding"]
["Top Public Shareholders"]
["Promoter Holding"]
["Bulk Deals"]
["Large Deals"]
["PEERS"]
["Competition"]
["Data Bank new"]
["Latest Price"]
["Stock Performance"]
["Market Cap"]
["Net Sales"]
["Net Profit"]
["Total Assets"]
["Fund managers holdings"]
["COMPANY INFO"]
["Management"]
["History"]
["Background"]
["Listing"]
["Location"]
["ALERTS"]
["Widgets"]
["BROKER"]
["RESEARCH "]
[]
["Track Tata%20Motors on the go with the moneycontrol app"]
["Result In"]
["new Format"]
["Result In"]
["Old Format"]
["Download Annual Report PDF Format 2017 | 2016 | 2015 | 2014 | 2013 | 2012 | 2011 | 2010 "]
["Standalone"]
["Consolidated"]
[]
["Print/Copy to Excel : "]
[]
["Previous Years »"]
["Balance Sheet of Tata Motors","------------------- in Rs. Cr. -------------------"]
[null,"Mar '18","Mar '17","Mar '16","Mar '15","Mar '14"]
[]
[null,"12 mths","12 mths","12 mths","12 mths","12 mths"]
[]
["Sources Of Funds"]
["Total Share Capital",679.22,679.22,679.18,643.78,643.78]
["Equity Share Capital",679.22,679.22,679.18,643.78,643.78]
["Reserves",19491.759999999998,20483.39,22582.93,14195.94,18510]
["Networth",20170.98,21162.61,23262.11,14839.72,19153.78]
["Secured Loans",2444.36,3124.12,3925.63,4803.26,4450.01]
["Unsecured Loans",13811.42,15720.49,10329.049999999999,15277.71,10065.52]
["Total Debt",16255.78,18844.61,14254.68,20080.97,14515.53]
["Total Liabilities",36426.76,40007.22,37516.79,34920.69,33669.31]
[null,"Mar '18","Mar '17","Mar '16","Mar '15","Mar '14"]
[]
[null,"12 mths","12 mths","12 mths","12 mths","12 mths"]
[]
["Application Of Funds"]
["Gross Block",39141.050000000003,36966.300000000003,35050.15,27973.79,26130.82]
["Less: Revaluation Reserves",0,0,0,22.87,22.87]
["Less: Accum. Depreciation",17537.3,16193.37,13974.34,12190.56,10890.25]
["Net Block",21603.75,20772.93,21075.81,15760.36,15217.7]
["Capital Work in Progress",5196.6000000000004,7270.99,5686.53,6040.79,6355.07]
["Investments",16763.57,17295.810000000001,16963.32,16987.169999999998,18458.419999999998]
["Inventories",5670.13,5553.01,5117.92,4802.08,3862.53]
["Sundry Debtors",3479.81,2128,2045.58,1114.48,1216.7]
["Cash and Bank Balance",795.42,326.61,788.42,944.75,226.15]
["Total Current Assets",9945.36,8007.62,7951.92,6861.31,5305.38]
["Loans and Advances",5703.02,5530.93,4998.42,4270.67,4374.9799999999996]
["Total CA, Loans & Advances",15648.38,13538.55,12950.34,11131.98,9680.36]
["Current Liabilities",20913.14,17501.71,17958.05,12282.33,13334.13]
["Provisions",1872.4,1369.35,1201.1600000000001,2717.28,2708.11]
["Total CL & Provisions",22785.54,18871.060000000001,19159.21,14999.61,16042.24]
["Net Current Assets",-7137.16,-5332.51,-6208.87,-3867.63,-6361.88]
["Total Assets",36426.76,40007.22,37516.79,34920.69,33669.31]
[]
["Contingent Liabilities",5269.63,4787.17,0,9882.65,12688.34]
["Book Value (Rs)",59.4,62.32,68.510000000000005,46.1,59.51]
[]
[]
[]
["Source : Dion Global Solutions Limited"]
[]
["Results of Tata Motors"]
["News"]
["Results"]
["Estimates"]
["Analysis"]
["10.04.2019"]
["Tata Motors global sales dip 5% in March"]
["10.04.2019"]
["Tata Motors jumps 5% after March global wholesales surge 32% MoM, FADA comments"]
["05.04.2019"]
["Will fulfill order for supply of 255 electric buses by July: Tata Motors"]
["04.04.2019"]
["No threat of govt blacklisting over delay in delivery of electric buses, says Tata Motors"]
["More »"]
["No news."]
["09.01.2019"]
["Tata Motors Q3 PAT may dip 65.6% YoY to Rs. 413.4 cr: Motilal Oswal"]
["More »"]
["No news."]
["Results of Auto - LCVs & HCVs Sector"]
["News"]
["Results"]
["Estimates"]
["Analysis"]
["No news."]
["No news."]
["No news."]
["No news."]
["Quick Links for tatamotors"]
["News","Corporate Action","Information","Financials","Annual Report","Peer Comparison"]
["Business","Board Meetings","Company History","Balance Sheet","Directors Report","Competition"]
["Earnings","AGM/EGM","Listing Info","Profit & Loss","Chairman's Speech","Price"]
["Mgmt Interviews ","Bonus","Locations","Quarterly Results","Auditors Report","Price Performance"]
["Announcements","Rights","Bulk Deals","Half Yearly Results","Notes to Accounts","Market Cap"]
["Stock Views","Splits","Large Deals","Nine Monthly Results","Finished Goods","Net Sales"]
["Brokerage Reports","Dividends","Shareholding","Yearly Results","Raw Materials","Net Profit"]
["Sector",null,"MF Holding","Cash Flow","Background","Total Assets"]
[null,null,"Top Shareholders","Ratios","Board of Directors","Historical Prices"]
[null,null,"Promoter Holding",null,"Capital Structure","Price of Tata%20Motors on previous budgets"]
["Related Searches tatamotors Stock Price, Tata%20Motors Stock Quote, Tata%20Motors Results , Tata%20Motors News .. More »"]
["Follow moneycontrol"]
["Facebook Twitter RSS Wap SMS SMS Alert iPad iPhone Blackberry OVI AndroidWindow"]
["Explore Moneycontrol"]
["Stocks     A | B | C | D | E | F | G | H | I | J | K | L | M | N | O | P | Q | R | S | T | U | V | W | X | Y | Z | Others"]
["Mutual Funds     A | B | C | D | E | F | G | H | I | J | K | L | M | N | O | P | Q | R | S | T | U | V | W | X | Y | Z"]
["Live Sensex | Public Sector Banks | Market Statistics | Plan Insurance | Global Market | Business News | Mutual Fund | Best Portfolio Manager | Bse Sensex | Nse Nifty | Commodities Price | Silver Price/Rate in India | Gold Price/Rate in India | Crude Oil | USD to INR | Bank Fixed Deposits | Company Fixed Deposits | Small Savings Schemes | Bonds | Budget 2019 | Tax Calculator | RBI Credit Policy | News Archive | FAQs | Financial Glossary | Message Board | Moneybhai | Think India | History India | Latest News | IBNLive News | News in Hindi | Cricket News | Online Study Material | India News |Restaurants in Kolkata | Online Shopping in India  | Cairn India | Euro | Infosys | Inflation | Silver | Glenmark Pharmaceuticals | Snapdeal | Starbucks | Narendra Modi | Crore | Clear Study Doubts | Education Franchisee Opportunity | Rss Feeds"]
["Site Map | About Us | Contact Us | Advertise | Bookmark | Disclaimer | Privacy Policy | Terms & Conditions | Careers"]
["Copyright © e-Eighteen.com Ltd. All rights reserved. Reproduction of news articles, photos, videos or any other content in whole or in part in any form or medium without express written permission of moneycontrol.com is prohibited."]

{"sheet":"tatamotors PL","index":5,"n_rows":472,"n_cols":6,"rows_kept":472,"cut":false,"hidden":false,"merged":[]}
["English"]
["Hindi"]
["Gujarati"]
[]
["App"]
[]
["Subscription"]
["Specials"]
[]
[]
[]
[]
[]
[]
[]
[]
[]
[]
[]
["Quotes "]
["NAVs"]
["Commodities "]
["Futures & Options "]
["News "]
["Forum "]
["Notices "]
["Videos "]
["Glossary "]
["All "]
[]
["Stocks"]
["Feedback"]
["Log In"]
[]
["My Profile (Unverified)"]
["My Portfolio"]
["My Watchlist"]
["My Messages"]
["My Alerts"]
[]
["Sign Up"]
["Logout"]
[]
[]
[]
[]
[]
[]
[]
["Get App"]
["Log In"]
["Sign Up"]
["My Portfolio"]
["My Watchlist"]
["My Messages"]
["Sign out"]
[]
["Quotes "]
["NAVs"]
["Commodities "]
["Futures & Options "]
["News "]
["Forum "]
["Notices "]
["Videos "]
["Glossary "]
["All "]
["Auriferous Aqua Farma , 519363"]
["View All "]
["Select Language"]
["English"]
["à¤¹à¤¿à¤‚à¤¦à¥€"]
["à¤—à¥\u0081à¤œà¤°à¤¾à¤¤à¥€"]
["Home"]
["Lok Sabha Election 2019 "]
[]
["Stock Premier League "]
[]
["News"]
["Markets"]
["Portfolio"]
["Watchlist"]
["Forum"]
["Indian Indices"]
["Global Indices"]
["MoneySavers"]
["Live TV & Shows"]
["Video "]
[]
["Commodities"]
["Currencies"]
["Mutual Funds"]
["Personal Finance"]
["Podcast "]
[]
["Cryptocurrency"]
["Subscription"]
["Specials"]
["Invest Now"]
["Master Your Money"]
["SME Special"]
["Real Assets"]
["Travel Cafe"]
["Tech Control"]
["Home"]
[]
["Companies"]
["Economy"]
["Property"]
["Politics"]
["Auto"]
["Cricket"]
["World"]
["Announcements"]
["News"]
[]
["Business"]
["Markets"]
["Stocks"]
["Economy"]
["Research"]
["Mutual Funds"]
["Personal Finance"]
["Property"]
["Auto"]
["IPO"]
["Politics"]
["India"]
["World"]
["BFSI Tech "]
[]
["Consumer Tech"]
["Startups"]
["Opinion "]
[]
["Lok Sabha Election 2019"]
[]
["Home"]
["Opinion"]
["Videos"]
["Photos"]
["Podcasts"]
["Modinomics Review"]
["Millennial News"]
["Election Dates"]
["Lok Sabha News"]
["Assembly Election 2019"]
["Markets"]
[]
["Home"]
["Pre-Market"]
["Advice"]
["Technicals"]
["F&O"]
["Earnings"]
["IPO"]
["All Stats"]
["Indian Indices "]
[]
["Global Markets"]
["Currencies"]
["Crypto"]
["Bonds"]
["Broker Research"]
["Tools"]
["Terminal"]
["Mutual Funds"]
[]
["Home"]
["Performance Tracker"]
["Top Ranked Funds"]
["ETFs"]
["NFO"]
["Learn"]
["Evaluate"]
["Track"]
["Tools"]
["SEBI Re-categorisation"]
["Tax Saving FY19"]
["Commodities"]
["Insurance"]
[]
["Video"]
[]
["Managing Money with Moneycontrol"]
["The Udayan Show"]
["Ideas for Profit"]
["Markets@moneycontrol"]
["Commodities@Moneycontrol"]
["Podcast"]
[]
["Digging Deeper with Moneycontrol"]
["Stock Picks of the Day"]
["Editor's Story of the Day"]
["A Morning Walk Down Dalal Street"]
["An Evening Walk Down Dalal Street"]
["Personal Finance"]
[]
["Home"]
["Investing"]
["Insurance"]
["Banking"]
["Financial Planning"]
["Property"]
["Tools"]
["Video"]
["Ask Expert"]
["Explainer"]
["Portfolio"]
["Forum"]
["Be a Pro "]
[]
[]
["Home"]
["Stock Reports"]
["Ambareesh Balega"]
["CK Narayan"]
["Mitessh Thakkar"]
["Sudarshan Sukhani"]
["T Gnanasekar"]
["Mecklai Financial"]
["Power Your Trade"]
["Investment Watch"]
["Live TV"]
["Hindi"]
["Gujarati"]
["All Stocks"]
["App"]
["Subscriptions"]
["Specials"]
["Feedback"]
["Close Ad"]
["Verify your Moneycontrol account. Please verify your Email ID and Mobile Number today. Verify Now"]
[]
[]
[]
["A Quick View"]
["Stocks in news"]
["Stocks you last visited"]
["Watchlist"]
["Portfolio"]
["Customize Stack 1 Customize Stack 2 Customize Stack 3 Customize Stack 4"]
[]
["Customize"]
["Customize Stacks"]
["Customize Ticker"]
["Detach"]
["Recommendations"]
["1+1=11.Multiply your wealth now with multibaggers from poweryourtrade.com Subscribe Now"]
[]
["Power Your Trade"]
[]
["Quick View"]
["Customize Stacks Customize Ticker Detach Help Feedback"]
["Stocks in News"]
["Stocks Last Visited"]
["Watchlist"]
["Portfolio"]
["SENSEX NIFTY "]
[]
[]
[]
[]
["YOU ARE HERE > MONEYCONTROL > MARKETS > Auto - LCVs & HCVs > Profit & Loss account - Tata Motors"]
["Tata Motors"]
["BSE: 500570|NSE: TATAMOTORS|ISIN: INE155A01022|SECTOR: Auto - LCVs & HCVs"]
["SET ALERT"]
["| "]
[]
["ADD TO PORTFOLIO | "]
["WATCHLIST "]
["LIVE"]
["BSE"]
["Apr 18, 16:00"]
[235.9]
["5.35 (2.32%)"]
["VOLUME 2,879,775"]
["LIVE"]
["NSE"]
["Apr 18, 15:59"]
[236.25]
["5.75 (2.49%)"]
["VOLUME 42,451,178"]
[]
["Quote"]
["CHARTS"]
["NEWS"]
["All News"]
["Business"]
["Earnings"]
["Management Interviews"]
["Stock Advice"]
["Research Reports"]
["Sector"]
["COMMENTS"]
["ANNOUNCEMENTS"]
["CORPORATE ACTION"]
["Board Meetings"]
["AGM/EGM"]
["Dividends"]
["Bonus"]
["Rights"]
["Splits"]
["FINANCIALS"]
["Balance Sheet"]
["Profit & Loss"]
["Quarterly Results"]
["Half Yearly Results"]
["Nine Monthly Results"]
["Yearly Results"]
["Cash Flow"]
["Ratios"]
["Capital Structure"]
["Financial Graphs"]
["ANNUAL REPORT"]
["Directors Report"]
["Chairman's Speech"]
["Auditors Report"]
["Notes To Accounts"]
["Accounting Policy"]
["Finished Products"]
["Raw Materials"]
["Investment Structure"]
["SHAREHOLDING"]
["Shareholding Pattern"]
["Mutual Funds Holding"]
["Top Public Shareholders"]
["Promoter Holding"]
["Bulk Deals"]
["Large Deals"]
["PEERS"]
["Competition"]
["Data Bank new"]
["Latest Price"]
["Stock Performance"]
["Market Cap"]
["Net Sales"]
["Net Profit"]
["Total Assets"]
["Fund managers holdings"]
["COMPANY INFO"]
["Management"]
["History"]
["Background"]
["Listing"]
["Location"]
["ALERTS"]
["Widgets"]
["BROKER"]
["RESEARCH "]
[]
["Track Tata%20Motors on the go with the moneycontrol app"]
["Result In"]
["new Format"]
["Result In"]
["Old Format"]
["Download Annual Report PDF Format 2017 | 2016 | 2015 | 2014 | 2013 | 2012 | 2011 | 2010 "]
["Standalone"]
["Consolidated"]
[]
["Print/Copy to Excel : "]
[]
["Previous Years »"]
["Profit & Loss account of Tata Motors","------------------- in Rs. Cr. -------------------"]
[null,"Mar 18",42795,42430,42064,41699]
[]
[null,"12 mths","12 mths","12 mths","12 mths","12 mths"]
[]
["INCOME"]
["Revenue From Operations [Gross]",58234.33,48078.77,46883.53,39120.1,37376.86]
["Less: Excise/Sevice Tax/Other Levies",793.28,4738.1499999999996,4538.1400000000003,3229.6,3469.89]
["Revenue From Operations [Net]",57441.05,43340.62,42345.39,35890.5,33906.97]
["Other Operating Revenues",1390.36,975.72,500.08,404.24,381.14]
["Total Operating Revenues",58831.41,44316.34,42845.47,36294.74,34288.11]
["Other Income",1557.6,981.06,1402.31,1881.41,3833.03]
["Total Revenue",60389.01,45297.4,44247.78,38176.15,38121.14]
["EXPENSES"]
["Cost Of Materials Consumed",37080.449999999997,27651.65,24997.4,22155.23,20492.87]
["Purchase Of Stock-In Trade",4762.41,3945.97,4101.97,5765.24,5049.82]
["Operating And Direct Expenses",474.98,454.48,418.27,437.47,428.74]
["Changes In Inventories Of FG,WIP And Stock-In Trade",842.05,-252.14,10.050000000000001,-878.82,371.72]
["Employee Benefit Expenses",3966.73,3764.35,3188.97,3091.46,2877.69]
["Finance Costs",1744.43,1569.01,1592,1611.68,1337.52]
["Depreciation And Amortisation Expenses",3101.89,3037.12,2329.2199999999998,2603.2199999999998,2070.3000000000002]
["Other Expenses",9251.41,8083.12,8216.65,8080.39,6987.53]
["Less: Amounts Transfer To Capital Accounts",855.08,941.6,1034.4000000000001,1118.75,1009.11]
["Total Expenses",60369.27,47311.96,43820.13,41747.120000000003,38607.08]
[null,43160,42795,42430,42064,41699]
[]
[null,"12 mths","12 mths","12 mths","12 mths","12 mths"]
[]
["Profit/Loss Before Exceptional, ExtraOrdinary Items And Tax",19.739999999999998,-2014.56,427.65,-3570.97,-485.94]
["Exceptional Items",-966.66,-338.71,-271.83999999999997,-403.75,-539.86]
["Profit/Loss Before Tax",-946.92,-2353.27,155.81,-3974.72,-1025.8]
["Tax Expenses-Continued Operations"]
["Current Tax",92.63,57.06,-7.34,37.340000000000003,-171.8]
["Less: MAT Credit Entitlement",0,0,0,-777.18,-731.8]
["Deferred Tax",-4.7,19.27,2.54,-50.29,-1920.32]
["Total Tax Expenses",87.93,76.33,-4.8,764.23,-1360.32]
["Profit/Loss After Tax And Before ExtraOrdinary Items",-1034.8499999999999,-2429.6,160.61000000000001,-4738.95,334.52]
["Extraordinary Items",0,0,-222.91,0,0]
["Profit/Loss From Continuing Operations",-1034.8499999999999,-2429.6,-62.3,-4738.95,334.52]
["Profit/Loss For The Period",-1034.8499999999999,-2429.6,-62.3,-4738.95,334.52]
[null,43160,42795,42430,42064,41699]
[]
[null,"12 mths","12 mths","12 mths","12 mths","12 mths"]
[]
["OTHER ADDITIONAL INFORMATION"]
["EARNINGS PER SHARE"]
["Basic EPS (Rs.)",-3.05,-7.15,-0.18,-15,1.03]
["Diluted EPS (Rs.)",-3.05,-7.15,-0.18,-15,1.03]
["VALUE OF IMPORTED AND INDIGENIOUS RAW MATERIALS"]
["Imported Raw Materials",0,0,0,1073.3900000000001,1040.1400000000001]
["Indigenous Raw Materials",0,0,0,21081.84,19452.73]
["STORES, SPARES AND LOOSE TOOLS"]
["DIVIDEND AND DIVIDEND PERCENTAGE"]
["Equity Share Dividend",0,73,0,0,648.55999999999995]
["Tax On Dividend",0,0,0,0,93.4]
["Equity Dividend Rate (%)",0,0,10,0,100]
[]
[]
[]
["Source : Dion Global Solutions Limited"]
[]
["Results of Tata Motors"]
["News"]
["Results"]
["Estimates"]
["Analysis"]
["10.04.2019"]
["Tata Motors global sales dip 5% in March"]
["10.04.2019"]
["Tata Motors jumps 5% after March global wholesales surge 32% MoM, FADA comments"]
["05.04.2019"]
["Will fulfill order for supply of 255 electric buses by July: Tata Motors"]
["04.04.2019"]
["No threat of govt blacklisting over delay in delivery of electric buses, says Tata Motors"]
["More »"]
["No news."]
["09.01.2019"]
["Tata Motors Q3 PAT may dip 65.6% YoY to Rs. 413.4 cr: Motilal Oswal"]
["More »"]
["No news."]
["Results of Auto - LCVs & HCVs Sector"]
["News"]
["Results"]
["Estimates"]
["Analysis"]
["No news."]
["No news."]
["No news."]
["No news."]
["Quick Links for tatamotors"]
["News","Corporate Action","Information","Financials","Annual Report","Peer Comparison"]
["Business","Board Meetings","Company History","Balance Sheet","Directors Report","Competition"]
["Earnings","AGM/EGM","Listing Info","Profit & Loss","Chairman's Speech","Price"]
["Mgmt Interviews ","Bonus","Locations","Quarterly Results","Auditors Report","Price Performance"]
["Announcements","Rights","Bulk Deals","Half Yearly Results","Notes to Accounts","Market Cap"]
["Stock Views","Splits","Large Deals","Nine Monthly Results","Finished Goods","Net Sales"]
["Brokerage Reports","Dividends","Shareholding","Yearly Results","Raw Materials","Net Profit"]
["Sector",null,"MF Holding","Cash Flow","Background","Total Assets"]
[null,null,"Top Shareholders","Ratios","Board of Directors","Historical Prices"]
[null,null,"Promoter Holding",null,"Capital Structure","Price of Tata%20Motors on previous budgets"]
["Related Searches tatamotors Stock Price, Tata%20Motors Stock Quote, Tata%20Motors Results , Tata%20Motors News .. More »"]
["Follow moneycontrol"]
["Facebook Twitter RSS Wap SMS SMS Alert iPad iPhone Blackberry OVI AndroidWindow"]
["Explore Moneycontrol"]
["Stocks     A | B | C | D | E | F | G | H | I | J | K | L | M | N | O | P | Q | R | S | T | U | V | W | X | Y | Z | Others"]
["Mutual Funds     A | B | C | D | E | F | G | H | I | J | K | L | M | N | O | P | Q | R | S | T | U | V | W | X | Y | Z"]
["Live Sensex | Public Sector Banks | Market Statistics | Plan Insurance | Global Market | Business News | Mutual Fund | Best Portfolio Manager | Bse Sensex | Nse Nifty | Commodities Price | Silver Price/Rate in India | Gold Price/Rate in India | Crude Oil | USD to INR | Bank Fixed Deposits | Company Fixed Deposits | Small Savings Schemes | Bonds | Budget 2019 | Tax Calculator | RBI Credit Policy | News Archive | FAQs | Financial Glossary | Message Board | Moneybhai | Think India | History India | Latest News | IBNLive News | News in Hindi | Cricket News | Online Study Material | India News |Restaurants in Kolkata | Online Shopping in India  | Cairn India | Euro | Infosys | Inflation | Silver | Glenmark Pharmaceuticals | Snapdeal | Starbucks | Narendra Modi | Crore | Clear Study Doubts | Education Franchisee Opportunity | Rss Feeds"]
["Site Map | About Us | Contact Us | Advertise | Bookmark | Disclaimer | Privacy Policy | Terms & Conditions | Careers"]
["Copyright © e-Eighteen.com Ltd. All rights reserved. Reproduction of news articles, photos, videos or any other content in whole or in part in any form or medium without express written permission of moneycontrol.com is prohibited."]

{"sheet":"tatamotors Ratios","index":6,"n_rows":474,"n_cols":6,"rows_kept":474,"cut":false,"hidden":false,"merged":[]}
["English"]
["Hindi"]
["Gujarati"]
[]
["App"]
[]
["Subscription"]
["Specials"]
[]
[]
[]
[]
[]
[]
[]
[]
[]
[]
[]
["Quotes "]
["NAVs"]
["Commodities "]
["Futures & Options "]
["News "]
["Forum "]
["Notices "]
["Videos "]
["Glossary "]
["All "]
[]
["Stocks"]
["Feedback"]
["Log In"]
[]
["My Profile (Unverified)"]
["My Portfolio"]
["My Watchlist"]
["My Messages"]
["My Alerts"]
[]
["Sign Up"]
["Logout"]
[]
[]
[]
[]
[]
[]
[]
["Get App"]
["Log In"]
["Sign Up"]
["My Portfolio"]
["My Watchlist"]
["My Messages"]
["Sign out"]
[]
["Quotes "]
["NAVs"]
["Commodities "]
["Futures & Options "]
["News "]
["Forum "]
["Notices "]
["Videos "]
["Glossary "]
["All "]
["Auriferous Aqua Farma , 519363"]
["View All "]
["Select Language"]
["English"]
["à¤¹à¤¿à¤‚à¤¦à¥€"]
["à¤—à¥\u0081à¤œà¤°à¤¾à¤¤à¥€"]
["Home"]
["Lok Sabha Election 2019 "]
[]
["Stock Premier League "]
[]
["News"]
["Markets"]
["Portfolio"]
["Watchlist"]
["Forum"]
["Indian Indices"]
["Global Indices"]
["MoneySavers"]
["Live TV & Shows"]
["Video "]
[]
["Commodities"]
["Currencies"]
["Mutual Funds"]
["Personal Finance"]
["Podcast "]
[]
["Cryptocurrency"]
["Subscription"]
["Specials"]
["Invest Now"]
["Master Your Money"]
["SME Special"]
["Real Assets"]
["Travel Cafe"]
["Tech Control"]
["Home"]
[]
["Companies"]
["Economy"]
["Property"]
["Politics"]
["Auto"]
["Cricket"]
["World"]
["Announcements"]
["News"]
[]
["Business"]
["Markets"]
["Stocks"]
["Economy"]
["Research"]
["Mutual Funds"]
["Personal Finance"]
["Property"]
["Auto"]
["IPO"]
["Politics"]
["India"]
["World"]
["BFSI Tech "]
[]
["Consumer Tech"]
["Startups"]
["Opinion "]
[]
["Lok Sabha Election 2019"]
[]
["Home"]
["Opinion"]
["Videos"]
["Photos"]
["Podcasts"]
["Modinomics Review"]
["Millennial News"]
["Election Dates"]
["Lok Sabha News"]
["Assembly Election 2019"]
["Markets"]
[]
["Home"]
["Pre-Market"]
["Advice"]
["Technicals"]
["F&O"]
["Earnings"]
["IPO"]
["All Stats"]
["Indian Indices "]
[]
["Global Markets"]
["Currencies"]
["Crypto"]
["Bonds"]
["Broker Research"]
["Tools"]
["Terminal"]
["Mutual Funds"]
[]
["Home"]
["Performance Tracker"]
["Top Ranked Funds"]
["ETFs"]
["NFO"]
["Learn"]
["Evaluate"]
["Track"]
["Tools"]
["SEBI Re-categorisation"]
["Tax Saving FY19"]
["Commodities"]
["Insurance"]
[]
["Video"]
[]
["Managing Money with Moneycontrol"]
["The Udayan Show"]
["Ideas for Profit"]
["Markets@moneycontrol"]
["Commodities@Moneycontrol"]
["Podcast"]
[]
["Digging Deeper with Moneycontrol"]
["Stock Picks of the Day"]
["Editor's Story of the Day"]
["A Morning Walk Down Dalal Street"]
["An Evening Walk Down Dalal Street"]
["Personal Finance"]
[]
["Home"]
["Investing"]
["Insurance"]
["Banking"]
["Financial Planning"]
["Property"]
["Tools"]
["Video"]
["Ask Expert"]
["Explainer"]
["Portfolio"]
["Forum"]
["Be a Pro "]
[]
[]
["Home"]
["Stock Reports"]
["Ambareesh Balega"]
["CK Narayan"]
["Mitessh Thakkar"]
["Sudarshan Sukhani"]
["T Gnanasekar"]
["Mecklai Financial"]
["Power Your Trade"]
["Investment Watch"]
["Live TV"]
["Hindi"]
["Gujarati"]
["All Stocks"]
["App"]
["Subscriptions"]
["Specials"]
["Feedback"]
["Close Ad"]
["Verify your Moneycontrol account. Please verify your Email ID and Mobile Number today. Verify Now"]
[]
[]
[]
["A Quick View"]
["Stocks in news"]
["Stocks you last visited"]
["Watchlist"]
["Portfolio"]
["Customize Stack 1 Customize Stack 2 Customize Stack 3 Customize Stack 4"]
[]
["Customize"]
["Customize Stacks"]
["Customize Ticker"]
["Detach"]
["Recommendations"]
["1+1=11.Multiply your wealth now with multibaggers from poweryourtrade.com Subscribe Now"]
[]
["Power Your Trade"]
[]
["Quick View"]
["Customize Stacks Customize Ticker Detach Help Feedback"]
["Stocks in News"]
["Stocks Last Visited"]
["Watchlist"]
["Portfolio"]
["SENSEX NIFTY "]
[]
[]
[]
[]
["YOU ARE HERE > MONEYCONTROL > MARKETS > Auto - LCVs & HCVs > Key Financial Ratios - Tata Motors"]
["Tata Motors"]
["BSE: 500570|NSE: TATAMOTORS|ISIN: INE155A01022|SECTOR: Auto - LCVs & HCVs"]
["SET ALERT"]
["| "]
[]
["ADD TO PORTFOLIO | "]
["WATCHLIST "]
["LIVE"]
["BSE"]
["Apr 18, 16:00"]
[235.9]
["5.35 (2.32%)"]
["VOLUME 2,879,775"]
["LIVE"]
["NSE"]
["Apr 18, 15:59"]
[236.25]
["5.75 (2.49%)"]
["VOLUME 42,451,178"]
[]
["Quote"]
["CHARTS"]
["NEWS"]
["All News"]
["Business"]
["Earnings"]
["Management Interviews"]
["Stock Advice"]
["Research Reports"]
["Sector"]
["COMMENTS"]
["ANNOUNCEMENTS"]
["CORPORATE ACTION"]
["Board Meetings"]
["AGM/EGM"]
["Dividends"]
["Bonus"]
["Rights"]
["Splits"]
["FINANCIALS"]
["Balance Sheet"]
["Profit & Loss"]
["Quarterly Results"]
["Half Yearly Results"]
["Nine Monthly Results"]
["Yearly Results"]
["Cash Flow"]
["Ratios"]
["Capital Structure"]
["Financial Graphs"]
["ANNUAL REPORT"]
["Directors Report"]
["Chairman's Speech"]
["Auditors Report"]
["Notes To Accounts"]
["Accounting Policy"]
["Finished Products"]
["Raw Materials"]
["Investment Structure"]
["SHAREHOLDING"]
["Shareholding Pattern"]
["Mutual Funds Holding"]
["Top Public Shareholders"]
["Promoter Holding"]
["Bulk Deals"]
["Large Deals"]
["PEERS"]
["Competition"]
["Data Bank new"]
["Latest Price"]
["Stock Performance"]
["Market Cap"]
["Net Sales"]
["Net Profit"]
["Total Assets"]
["Fund managers holdings"]
["COMPANY INFO"]
["Management"]
["History"]
["Background"]
["Listing"]
["Location"]
["ALERTS"]
["Widgets"]
["BROKER"]
["RESEARCH "]
[]
["Track Tata%20Motors on the go with the moneycontrol app"]
["Result In"]
["new Format"]
["Result In"]
["Old Format"]
["Download Annual Report PDF Format 2017 | 2016 | 2015 | 2014 | 2013 | 2012 | 2011 | 2010 "]
["Standalone"]
["Consolidated"]
[]
["Print/Copy to Excel : "]
[]
["Previous Years »"]
["Key Financial Ratios of Tata Motors"]
[]
[]
[null,"Mar '18","Mar '17","Mar '16","Mar '15","Mar '14"]
[]
["Investment Valuation Ratios"]
["Face Value",2,2,2,2,2]
["Dividend Per Share","--","--",0.2,"--",2]
["Operating Profit Per Share (Rs)",9.74,4.74,8.68,-3.84,-2.83]
["Net Operating Profit Per Share (Rs)",173.24,130.5,126.18,112.76,106.53]
["Free Reserves Per Share (Rs)","--","--","--","--","--"]
["Bonus in Equity Capital",16.38,16.38,16.38,17.28,17.28]
["Profitability Ratios"]
["Operating Profit Margin(%)",5.62,3.63,6.87,-3.4,-2.65]
["Profit Before Interest And Tax Margin(%)",0.34,-3.14,1.39,-10.06,-7.82]
["Gross Profit Margin(%)",0.35,-3.21,1.44,-10.58,-8.69]
["Cash Profit Margin(%)",5.0199999999999996,2.08,6.24,-4.53,7.72]
["Adjusted Cash Margin(%)",5.0199999999999996,2.08,6.24,-4.53,7.72]
["Net Profit Margin(%)",-1.75,-5.48,-0.14000000000000001,-13.05,0.97]
["Adjusted Net Profit Margin(%)",-1.71,-5.36,-0.14000000000000001,-12.41,0.87]
["Return On Capital Employed(%)",4.84,-1.1100000000000001,5.38,-5.61,2.52]
["Return On Net Worth(%)",-5.13,-11.48,-0.26,-31.93,1.74]
["Adjusted Return on Net Worth(%)",-0.33,-9.8800000000000008,1.85,-29.21,4.5599999999999996]
["Return on Assets Excluding Revaluations",59.4,62.32,68.510000000000005,46.1,59.51]
["Return on Assets Including Revaluations",59.4,62.32,68.510000000000005,46.18,59.58]
["Return on Long Term Funds(%)",5.29,-1.27,5.96,-7.21,2.94]
["Liquidity And Solvency Ratios"]
["Current Ratio",0.56999999999999995,0.53,0.51,0.42,0.43]
["Quick Ratio",0.44,0.42,0.41,0.42,0.36]
["Debt Equity Ratio",0.81,0.89,0.61,1.35,0.76]
["Long Term Debt Equity Ratio",0.65,0.65,0.46,0.83,0.51]
["Debt Coverage Ratios"]
["Interest Cover",1.01,-0.28000000000000003,1.27,-1.22,0.64]
["Total Debt to Owners Fund",0.81,0.89,0.61,1.35,0.76]
["Financial Charges Coverage Ratio",2.79,1.65,2.73,0.4,2.1800000000000002]
["Financial Charges Coverage Ratio Post Tax",2.1800000000000002,1.39,2.42,-0.33,2.8]
["Management Efficiency Ratios"]
["Inventory Turnover Ratio",10.52,8.83,9.26,8.23,9.7799999999999994]
["Debtors Turnover Ratio",20.98,21.24,27.12,31.14,22.6]
["Investments Turnover Ratio",10.52,8.83,9.26,8.23,9.7799999999999994]
["Fixed Assets Turnover Ratio",1.65,1.3,1.36,1.48,1.49]
["Total Assets Turnover Ratio",1.78,1.19,1.26,1.1599999999999999,1.1200000000000001]
["Asset Turnover Ratio",1.54,1.1399999999999999,1.18,1.06,1.02]
[]
["Average Raw Material Holding","--","--","--","--","--"]
["Average Finished Goods Held","--","--","--","--","--"]
["Number of Days In Working Capital",-76.91,-83.22,-88.55,-41.83,-69.72]
["Profit & Loss Account Ratios"]
["Material Cost Composition",72.209999999999994,72.77,69.12,78.150000000000006,75.94]
["Imported Composition of Raw Materials Consumed","--","--","--",4.84,5.07]
["Selling Distribution Cost Composition",1.22,1.91,1.56,"--",1.78]
["Expenses as Composition of Total Sales",9.2100000000000009,"--","--",15.37,20.239999999999998]
["Cash Flow Indicator Ratios"]
["Dividend Payout Ratio Net Profit","--","--","--","--",193.87]
["Dividend Payout Ratio Cash Profit","--","--","--","--",26.96]
["Earning Retention Ratio",100,100,100,100,25.83]
["Cash Earning Retention Ratio",100,100,100,"--",77.98]
["AdjustedCash Flow Times",5.36,19.920000000000002,5.16,"--",4.93]
[]
[]
[]
["Source : Dion Global Solutions Limited"]
[]
["Results of Tata Motors"]
["News"]
["Results"]
["Estimates"]
["Analysis"]
["10.04.2019"]
["Tata Motors global sales dip 5% in March"]
["10.04.2019"]
["Tata Motors jumps 5% after March global wholesales surge 32% MoM, FADA comments"]
["05.04.2019"]
["Will fulfill order for supply of 255 electric buses by July: Tata Motors"]
["04.04.2019"]
["No threat of govt blacklisting over delay in delivery of electric buses, says Tata Motors"]
["More »"]
["No news."]
["09.01.2019"]
["Tata Motors Q3 PAT may dip 65.6% YoY to Rs. 413.4 cr: Motilal Oswal"]
["More »"]
["No news."]
["Results of Auto - LCVs & HCVs Sector"]
["News"]
["Results"]
["Estimates"]
["Analysis"]
["No news."]
["No news."]
["No news."]
["No news."]
["Quick Links for tatamotors"]
["News","Corporate Action","Information","Financials","Annual Report","Peer Comparison"]
["Business","Board Meetings","Company History","Balance Sheet","Directors Report","Competition"]
["Earnings","AGM/EGM","Listing Info","Profit & Loss","Chairman's Speech","Price"]
["Mgmt Interviews ","Bonus","Locations","Quarterly Results","Auditors Report","Price Performance"]
["Announcements","Rights","Bulk Deals","Half Yearly Results","Notes to Accounts","Market Cap"]
["Stock Views","Splits","Large Deals","Nine Monthly Results","Finished Goods","Net Sales"]
["Brokerage Reports","Dividends","Shareholding","Yearly Results","Raw Materials","Net Profit"]
["Sector",null,"MF Holding","Cash Flow","Background","Total Assets"]
[null,null,"Top Shareholders","Ratios","Board of Directors","Historical Prices"]
[null,null,"Promoter Holding",null,"Capital Structure","Price of Tata%20Motors on previous budgets"]
["Related Searches tatamotors Stock Price, Tata%20Motors Stock Quote, Tata%20Motors Results , Tata%20Motors News .. More »"]
["Follow moneycontrol"]
["Facebook Twitter RSS Wap SMS SMS Alert iPad iPhone Blackberry OVI AndroidWindow"]
["Explore Moneycontrol"]
["Stocks     A | B | C | D | E | F | G | H | I | J | K | L | M | N | O | P | Q | R | S | T | U | V | W | X | Y | Z | Others"]
["Mutual Funds     A | B | C | D | E | F | G | H | I | J | K | L | M | N | O | P | Q | R | S | T | U | V | W | X | Y | Z"]
["Live Sensex | Public Sector Banks | Market Statistics | Plan Insurance | Global Market | Business News | Mutual Fund | Best Portfolio Manager | Bse Sensex | Nse Nifty | Commodities Price | Silver Price/Rate in India | Gold Price/Rate in India | Crude Oil | USD to INR | Bank Fixed Deposits | Company Fixed Deposits | Small Savings Schemes | Bonds | Budget 2019 | Tax Calculator | RBI Credit Policy | News Archive | FAQs | Financial Glossary | Message Board | Moneybhai | Think India | History India | Latest News | IBNLive News | News in Hindi | Cricket News | Online Study Material | India News |Restaurants in Hyderabad | Online Shopping in India  | Cairn India | Euro | Infosys | Inflation | Silver | Glenmark Pharmaceuticals | Snapdeal | Starbucks | Narendra Modi | Crore | Clear Study Doubts | Education Franchisee Opportunity | Rss Feeds"]
["Site Map | About Us | Contact Us | Advertise | Bookmark | Disclaimer | Privacy Policy | Terms & Conditions | Careers"]
["Copyright © e-Eighteen.com Ltd. All rights reserved. Reproduction of news articles, photos, videos or any other content in whole or in part in any form or medium without express written permission of moneycontrol.com is prohibited."]

{"sheet":"tatamotors CF","index":7,"n_rows":429,"n_cols":6,"rows_kept":429,"cut":false,"hidden":false,"merged":[]}
["English"]
["Hindi"]
["Gujarati"]
[]
["App"]
[]
["Subscription"]
["Specials"]
[]
[]
[]
[]
[]
[]
[]
[]
[]
[]
[]
["Quotes "]
["NAVs"]
["Commodities "]
["Futures & Options "]
["News "]
["Forum "]
["Notices "]
["Videos "]
["Glossary "]
["All "]
[]
["Stocks"]
["Feedback"]
["Log In"]
[]
["My Profile (Unverified)"]
["My Portfolio"]
["My Watchlist"]
["My Messages"]
["My Alerts"]
[]
["Sign Up"]
["Logout"]
[]
[]
[]
[]
[]
[]
[]
["Get App"]
["Log In"]
["Sign Up"]
["My Portfolio"]
["My Watchlist"]
["My Messages"]
["Sign out"]
[]
["Quotes "]
["NAVs"]
["Commodities "]
["Futures & Options "]
["News "]
["Forum "]
["Notices "]
["Videos "]
["Glossary "]
["All "]
["Auriferous Aqua Farma , 519363"]
["View All "]
["Select Language"]
["English"]
["à¤¹à¤¿à¤‚à¤¦à¥€"]
["à¤—à¥\u0081à¤œà¤°à¤¾à¤¤à¥€"]
["Home"]
["Lok Sabha Election 2019 "]
[]
["Stock Premier League "]
[]
["News"]
["Markets"]
["Portfolio"]
["Watchlist"]
["Forum"]
["Indian Indices"]
["Global Indices"]
["MoneySavers"]
["Live TV & Shows"]
["Video "]
[]
["Commodities"]
["Currencies"]
["Mutual Funds"]
["Personal Finance"]
["Podcast "]
[]
["Cryptocurrency"]
["Subscription"]
["Specials"]
["Invest Now"]
["Master Your Money"]
["SME Special"]
["Real Assets"]
["Travel Cafe"]
["Tech Control"]
["Home"]
[]
["Companies"]
["Economy"]
["Property"]
["Politics"]
["Auto"]
["Cricket"]
["World"]
["Announcements"]
["News"]
[]
["Business"]
["Markets"]
["Stocks"]
["Economy"]
["Research"]
["Mutual Funds"]
["Personal Finance"]
["Property"]
["Auto"]
["IPO"]
["Politics"]
["India"]
["World"]
["BFSI Tech "]
[]
["Consumer Tech"]
["Startups"]
["Opinion "]
[]
["Lok Sabha Election 2019"]
[]
["Home"]
["Opinion"]
["Videos"]
["Photos"]
["Podcasts"]
["Modinomics Review"]
["Millennial News"]
["Election Dates"]
["Lok Sabha News"]
["Assembly Election 2019"]
["Markets"]
[]
["Home"]
["Pre-Market"]
["Advice"]
["Technicals"]
["F&O"]
["Earnings"]
["IPO"]
["All Stats"]
["Indian Indices "]
[]
["Global Markets"]
["Currencies"]
["Crypto"]
["Bonds"]
["Broker Research"]
["Tools"]
["Terminal"]
["Mutual Funds"]
[]
["Home"]
["Performance Tracker"]
["Top Ranked Funds"]
["ETFs"]
["NFO"]
["Learn"]
["Evaluate"]
["Track"]
["Tools"]
["SEBI Re-categorisation"]
["Tax Saving FY19"]
["Commodities"]
["Insurance"]
[]
["Video"]
[]
["Managing Money with Moneycontrol"]
["The Udayan Show"]
["Ideas for Profit"]
["Markets@moneycontrol"]
["Commodities@Moneycontrol"]
["Podcast"]
[]
["Digging Deeper with Moneycontrol"]
["Stock Picks of the Day"]
["Editor's Story of the Day"]
["A Morning Walk Down Dalal Street"]
["An Evening Walk Down Dalal Street"]
["Personal Finance"]
[]
["Home"]
["Investing"]
["Insurance"]
["Banking"]
["Financial Planning"]
["Property"]
["Tools"]
["Video"]
["Ask Expert"]
["Explainer"]
["Portfolio"]
["Forum"]
["Be a Pro "]
[]
[]
["Home"]
["Stock Reports"]
["Ambareesh Balega"]
["CK Narayan"]
["Mitessh Thakkar"]
["Sudarshan Sukhani"]
["T Gnanasekar"]
["Mecklai Financial"]
["Power Your Trade"]
["Investment Watch"]
["Live TV"]
["Hindi"]
["Gujarati"]
["All Stocks"]
["App"]
["Subscriptions"]
["Specials"]
["Feedback"]
["Close Ad"]
["Verify your Moneycontrol account. Please verify your Email ID and Mobile Number today. Verify Now"]
[]
[]
[]
["A Quick View"]
["Stocks in news"]
["Stocks you last visited"]
["Watchlist"]
["Portfolio"]
["Customize Stack 1 Customize Stack 2 Customize Stack 3 Customize Stack 4"]
[]
["Customize"]
["Customize Stacks"]
["Customize Ticker"]
["Detach"]
["Recommendations"]
["1+1=11.Multiply your wealth now with multibaggers from poweryourtrade.com Subscribe Now"]
[]
["Power Your Trade"]
[]
["Quick View"]
["Customize Stacks Customize Ticker Detach Help Feedback"]
["Stocks in News"]
["Stocks Last Visited"]
["Watchlist"]
["Portfolio"]
["SENSEX NIFTY "]
[]
[]
[]
[]
["YOU ARE HERE > MONEYCONTROL > MARKETS > Auto - LCVs & HCVs > Cash Flow - Tata Motors"]
["Tata Motors"]
["BSE: 500570|NSE: TATAMOTORS|ISIN: INE155A01022|SECTOR: Auto - LCVs & HCVs"]
["SET ALERT"]
["| "]
[]
["ADD TO PORTFOLIO | "]
["WATCHLIST "]
["LIVE"]
["BSE"]
["Apr 18, 16:00"]
[235.9]
["5.35 (2.32%)"]
["VOLUME 2,879,775"]
["LIVE"]
["NSE"]
["Apr 18, 15:59"]
[236.25]
["5.75 (2.49%)"]
["VOLUME 42,451,178"]
[]
["Quote"]
["CHARTS"]
["NEWS"]
["All News"]
["Business"]
["Earnings"]
["Management Interviews"]
["Stock Advice"]
["Research Reports"]
["Sector"]
["COMMENTS"]
["ANNOUNCEMENTS"]
["CORPORATE ACTION"]
["Board Meetings"]
["AGM/EGM"]
["Dividends"]
["Bonus"]
["Rights"]
["Splits"]
["FINANCIALS"]
["Balance Sheet"]
["Profit & Loss"]
["Quarterly Results"]
["Half Yearly Results"]
["Nine Monthly Results"]
["Yearly Results"]
["Cash Flow"]
["Ratios"]
["Capital Structure"]
["Financial Graphs"]
["ANNUAL REPORT"]
["Directors Report"]
["Chairman's Speech"]
["Auditors Report"]
["Notes To Accounts"]
["Accounting Policy"]
["Finished Products"]
["Raw Materials"]
["Investment Structure"]
["SHAREHOLDING"]
["Shareholding Pattern"]
["Mutual Funds Holding"]
["Top Public Shareholders"]
["Promoter Holding"]
["Bulk Deals"]
["Large Deals"]
["PEERS"]
["Competition"]
["Data Bank new"]
["Latest Price"]
["Stock Performance"]
["Market Cap"]
["Net Sales"]
["Net Profit"]
["Total Assets"]
["Fund managers holdings"]
["COMPANY INFO"]
["Management"]
["History"]
["Background"]
["Listing"]
["Location"]
["ALERTS"]
["Widgets"]
["BROKER"]
["RESEARCH "]
[]
["Track Tata%20Motors on the go with the moneycontrol app"]
["Result In"]
["new Format"]
["Result In"]
["Old Format"]
["Download Annual Report PDF Format 2017 | 2016 | 2015 | 2014 | 2013 | 2012 | 2011 | 2010 "]
["Standalone"]
["Consolidated"]
[]
["Print/Copy to Excel : "]
[]
["Previous Years »"]
["Cash Flow of Tata Motors","------------------- in Rs. Cr. -------------------"]
[null,"Mar '18","Mar '17","Mar '16","Mar '15","Mar '14"]
[]
[null,"12 mths","12 mths","12 mths","12 mths","12 mths"]
[]
["Net Profit Before Tax",-1034.8499999999999,-2429.6,-62.3,-4738.95,334.52]
["Net Cash From Operating Activities",4133.9399999999996,1453.45,2702.98,-2562.67,2463.46]
["Net Cash (used in)/from",-710.27,-2859,-3264.22,601.74,2552.91]
["Investing Activities"]
["Net Cash (used in)/from Financing Activities",-3105.63,1208.8,-78.87,2631.53,-5033.8100000000004]
["Net (decrease)/increase In Cash and Cash Equivalents",317.88,-198.13,-639.4,663.27,-6.89]
["Opening Cash & Cash Equivalents",228.94,427.07,1066.47,198.68,205.57]
["Closing Cash & Cash Equivalents",546.82000000000005,228.94,427.07,861.95,198.68]
[]
[]
[]
["Source : Dion Global Solutions Limited"]
[]
["Results of Tata Motors"]
["News"]
["Results"]
["Estimates"]
["Analysis"]
["10.04.2019"]
["Tata Motors global sales dip 5% in March"]
["10.04.2019"]
["Tata Motors jumps 5% after March global wholesales surge 32% MoM, FADA comments"]
["05.04.2019"]
["Will fulfill order for supply of 255 electric buses by July: Tata Motors"]
["04.04.2019"]
["No threat of govt blacklisting over delay in delivery of electric buses, says Tata Motors"]
["More »"]
["No news."]
["09.01.2019"]
["Tata Motors Q3 PAT may dip 65.6% YoY to Rs. 413.4 cr: Motilal Oswal"]
["More »"]
["No news."]
["Results of Auto - LCVs & HCVs Sector"]
["News"]
["Results"]
["Estimates"]
["Analysis"]
["No news."]
["No news."]
["No news."]
["No news."]
["Quick Links for tatamotors"]
["News","Corporate Action","Information","Financials","Annual Report","Peer Comparison"]
["Business","Board Meetings","Company History","Balance Sheet","Directors Report","Competition"]
["Earnings","AGM/EGM","Listing Info","Profit & Loss","Chairman's Speech","Price"]
["Mgmt Interviews ","Bonus","Locations","Quarterly Results","Auditors Report","Price Performance"]
["Announcements","Rights","Bulk Deals","Half Yearly Results","Notes to Accounts","Market Cap"]
["Stock Views","Splits","Large Deals","Nine Monthly Results","Finished Goods","Net Sales"]
["Brokerage Reports","Dividends","Shareholding","Yearly Results","Raw Materials","Net Profit"]
["Sector",null,"MF Holding","Cash Flow","Background","Total Assets"]
[null,null,"Top Shareholders","Ratios","Board of Directors","Historical Prices"]
[null,null,"Promoter Holding",null,"Capital Structure","Price of Tata%20Motors on previous budgets"]
["Related Searches tatamotors Stock Price, Tata%20Motors Stock Quote, Tata%20Motors Results , Tata%20Motors News .. More »"]
["Follow moneycontrol"]
["Facebook Twitter RSS Wap SMS SMS Alert iPad iPhone Blackberry OVI AndroidWindow"]
["Explore Moneycontrol"]
["Stocks     A | B | C | D | E | F | G | H | I | J | K | L | M | N | O | P | Q | R | S | T | U | V | W | X | Y | Z | Others"]
["Mutual Funds     A | B | C | D | E | F | G | H | I | J | K | L | M | N | O | P | Q | R | S | T | U | V | W | X | Y | Z"]
["Live Sensex | Public Sector Banks | Market Statistics | Plan Insurance | Global Market | Business News | Mutual Fund | Best Portfolio Manager | Bse Sensex | Nse Nifty | Commodities Price | Silver Price/Rate in India | Gold Price/Rate in India | Crude Oil | USD to INR | Bank Fixed Deposits | Company Fixed Deposits | Small Savings Schemes | Bonds | Budget 2019 | Tax Calculator | RBI Credit Policy | News Archive | FAQs | Financial Glossary | Message Board | Moneybhai | Think India | History India | Latest News | IBNLive News | News in Hindi | Cricket News | Online Study Material | India News |Restaurants in Bangalore | Online Shopping in India  | Cairn India | Euro | Infosys | Inflation | Silver | Glenmark Pharmaceuticals | Snapdeal | Starbucks | Narendra Modi | Crore | Clear Study Doubts | Education Franchisee Opportunity | Rss Feeds"]
["Site Map | About Us | Contact Us | Advertise | Bookmark | Disclaimer | Privacy Policy | Terms & Conditions | Careers"]
["Copyright © e-Eighteen.com Ltd. All rights reserved. Reproduction of news articles, photos, videos or any other content in whole or in part in any form or medium without express written permission of moneycontrol.com is prohibited."]

{"sheet":"htmedia BS","index":8,"n_rows":448,"n_cols":6,"rows_kept":448,"cut":false,"hidden":false,"merged":[]}
["English"]
["Hindi"]
["Gujarati"]
[]
["App"]
[]
["Subscription"]
["Specials"]
[]
[]
[]
[]
[]
[]
[]
[]
[]
[]
[]
["Quotes "]
["NAVs"]
["Commodities "]
["Futures & Options "]
["News "]
["Forum "]
["Notices "]
["Videos "]
["Glossary "]
["All "]
[]
["Stocks"]
["Feedback"]
["Log In"]
[]
["My Profile (Unverified)"]
["My Portfolio"]
["My Watchlist"]
["My Messages"]
["My Alerts"]
[]
["Sign Up"]
["Logout"]
[]
[]
[]
[]
[]
[]
[]
["Get App"]
["Log In"]
["Sign Up"]
["My Portfolio"]
["My Watchlist"]
["My Messages"]
["Sign out"]
[]
["Quotes "]
["NAVs"]
["Commodities "]
["Futures & Options "]
["News "]
["Forum "]
["Notices "]
["Videos "]
["Glossary "]
["All "]
["Auriferous Aqua Farma , 519363"]
["View All "]
["Select Language"]
["English"]
["à¤¹à¤¿à¤‚à¤¦à¥€"]
["à¤—à¥\u0081à¤œà¤°à¤¾à¤¤à¥€"]
["Home"]
["Lok Sabha Election 2019 "]
[]
["Stock Premier League "]
[]
["News"]
["Markets"]
["Portfolio"]
["Watchlist"]
["Forum"]
["Indian Indices"]
["Global Indices"]
["MoneySavers"]
["Live TV & Shows"]
["Video "]
[]
["Commodities"]
["Currencies"]
["Mutual Funds"]
["Personal Finance"]
["Podcast "]
[]
["Cryptocurrency"]
["Subscription"]
["Specials"]
["Invest Now"]
["Master Your Money"]
["SME Special"]
["Real Assets"]
["Travel Cafe"]
["Tech Control"]
["Home"]
[]
["Companies"]
["Economy"]
["Property"]
["Politics"]
["Auto"]
["Cricket"]
["World"]
["Announcements"]
["News"]
[]
["Business"]
["Markets"]
["Stocks"]
["Economy"]
["Research"]
["Mutual Funds"]
["Personal Finance"]
["Property"]
["Auto"]
["IPO"]
["Politics"]
["India"]
["World"]
["BFSI Tech "]
[]
["Consumer Tech"]
["Startups"]
["Opinion "]
[]
["Lok Sabha Election 2019"]
[]
["Home"]
["Opinion"]
["Videos"]
["Photos"]
["Podcasts"]
["Modinomics Review"]
["Millennial News"]
["Election Dates"]
["Lok Sabha News"]
["Assembly Election 2019"]
["Markets"]
[]
["Home"]
["Pre-Market"]
["Advice"]
["Technicals"]
["F&O"]
["Earnings"]
["IPO"]
["All Stats"]
["Indian Indices "]
[]
["Global Markets"]
["Currencies"]
["Crypto"]
["Bonds"]
["Broker Research"]
["Tools"]
["Terminal"]
["Mutual Funds"]
[]
["Home"]
["Performance Tracker"]
["Top Ranked Funds"]
["ETFs"]
["NFO"]
["Learn"]
["Evaluate"]
["Track"]
["Tools"]
["SEBI Re-categorisation"]
["Tax Saving FY19"]
["Commodities"]
["Insurance"]
[]
["Video"]
[]
["Managing Money with Moneycontrol"]
["The Udayan Show"]
["Ideas for Profit"]
["Markets@moneycontrol"]
["Commodities@Moneycontrol"]
["Podcast"]
[]
["Digging Deeper with Moneycontrol"]
["Stock Picks of the Day"]
["Editor's Story of the Day"]
["A Morning Walk Down Dalal Street"]
["An Evening Walk Down Dalal Street"]
["Personal Finance"]
[]
["Home"]
["Investing"]
["Insurance"]
["Banking"]
["Financial Planning"]
["Property"]
["Tools"]
["Video"]
["Ask Expert"]
["Explainer"]
["Portfolio"]
["Forum"]
["Be a Pro "]
[]
[]
["Home"]
["Stock Reports"]
["Ambareesh Balega"]
["CK Narayan"]
["Mitessh Thakkar"]
["Sudarshan Sukhani"]
["T Gnanasekar"]
["Mecklai Financial"]
["Power Your Trade"]
["Investment Watch"]
["Live TV"]
["Hindi"]
["Gujarati"]
["All Stocks"]
["App"]
["Subscriptions"]
["Specials"]
["Feedback"]
["Close Ad"]
["Verify your Moneycontrol account. Please verify your Email ID and Mobile Number today. Verify Now"]
[]
[]
[]
["A Quick View"]
["Stocks in news"]
["Stocks you last visited"]
["Watchlist"]
["Portfolio"]
["Customize Stack 1 Customize Stack 2 Customize Stack 3 Customize Stack 4"]
[]
["Customize"]
["Customize Stacks"]
["Customize Ticker"]
["Detach"]
["Recommendations"]
["1+1=11.Multiply your wealth now with multibaggers from poweryourtrade.com Subscribe Now"]
[]
["Power Your Trade"]
[]
["Quick View"]
["Customize Stacks Customize Ticker Detach Help Feedback"]
["Stocks in News"]
["Stocks Last Visited"]
["Watchlist"]
["Portfolio"]
["SENSEX NIFTY "]
[]
[]
[]
[]
["YOU ARE HERE > MONEYCONTROL > MARKETS > Media & Entertainment > Balance Sheet - HT Media"]
["HT Media"]
["BSE: 532662|NSE: HTMEDIA|ISIN: INE501G01024|SECTOR: Media & Entertainment"]
["SET ALERT"]
["| "]
[]
["ADD TO PORTFOLIO | "]
["WATCHLIST "]
["LIVE"]
["BSE"]
["Apr 18, 16:00"]
[40.35]
["-0.2 (-0.49%)"]
["VOLUME 42,739"]
["LIVE"]
["NSE"]
["Apr 18, 15:41"]
[40.35]
["-0.4 (-0.98%)"]
["VOLUME 95,208"]
[]
["Quote"]
["CHARTS"]
["NEWS"]
["All News"]
["Business"]
["Earnings"]
["Management Interviews"]
["Stock Advice"]
["Research Reports"]
["Sector"]
["COMMENTS"]
["ANNOUNCEMENTS"]
["CORPORATE ACTION"]
["Board Meetings"]
["AGM/EGM"]
["Dividends"]
["Bonus"]
["Rights"]
["Splits"]
["FINANCIALS"]
["Balance Sheet"]
["Profit & Loss"]
["Quarterly Results"]
["Half Yearly Results"]
["Nine Monthly Results"]
["Yearly Results"]
["Cash Flow"]
["Ratios"]
["Capital Structure"]
["Financial Graphs"]
["ANNUAL REPORT"]
["Directors Report"]
["Chairman's Speech"]
["Auditors Report"]
["Notes To Accounts"]
["Accounting Policy"]
["Finished Products"]
["Raw Materials"]
["Investment Structure"]
["SHAREHOLDING"]
["Shareholding Pattern"]
["Mutual Funds Holding"]
["Top Public Shareholders"]
["Promoter Holding"]
["Bulk Deals"]
["Large Deals"]
["PEERS"]
["Competition"]
["Data Bank new"]
["Latest Price"]
["Stock Performance"]
["Market Cap"]
["Net Sales"]
["Net Profit"]
["Total Assets"]
["Fund managers holdings"]
["COMPANY INFO"]
["Management"]
["History"]
["Background"]
["Listing"]
["Location"]
["ALERTS"]
["Widgets"]
["BROKER"]
["RESEARCH "]
[]
["Track HT%20Media on the go with the moneycontrol app"]
["Result In"]
["new Format"]
["Result In"]
["Old Format"]
["Download Annual Report PDF Format 2017 | 2016 | 2015 | 2014 | 2013 | 2012 | 2011 | 2010 "]
["Standalone"]
["Consolidated"]
[]
["Print/Copy to Excel : "]
[]
["Previous Years »"]
["Balance Sheet of HT Media","------------------- in Rs. Cr. -------------------"]
[null,"Mar '18","Mar '17","Mar '16","Mar '15","Mar '14"]
[]
[null,"12 mths","12 mths","12 mths","12 mths","12 mths"]
[]
["Sources Of Funds"]
["Total Share Capital",46.11,46.1,46.1,46.1,46.08]
["Equity Share Capital",46.11,46.1,46.1,46.1,46.08]
["Reserves",1853.28,1652.25,1545.9,1455.37,1362.48]
["Networth",1899.39,1698.35,1592,1501.47,1408.56]
["Secured Loans",1071.96,987.4,884.48,105.94,141.6]
["Unsecured Loans",0,0,0,139.72,254.91]
["Total Debt",1071.96,987.4,884.48,245.66,396.51]
["Total Liabilities",2971.35,2685.75,2476.48,1747.13,1805.07]
[null,"Mar '18","Mar '17","Mar '16","Mar '15","Mar '14"]
[]
[null,"12 mths","12 mths","12 mths","12 mths","12 mths"]
[]
["Application Of Funds"]
["Gross Block",953.8,989.4,1240.8599999999999,931.85,940.85]
["Less: Accum. Depreciation",180.1,127.4,487.93,432.75,380.51]
["Net Block",773.7,862,752.93,499.1,560.34]
["Capital Work in Progress",469.78,368.81,0,36.979999999999997,22.53]
["Investments",1733.11,1654.36,1215.79,1055.4100000000001,1078.67]
["Inventories",77.16,107.91,113.99,108.86,192.73]
["Sundry Debtors",219.07,177.05,241.76,196.52,189.93]
["Cash and Bank Balance",80.5,65.91,83.82,115.92,72.14]
["Total Current Assets",376.73,350.87,439.57,421.3,454.8]
["Loans and Advances",294.36,181.61,774.8,502.67,380.54]
["Total CA, Loans & Advances",671.09,532.48,1214.3699999999999,923.97,835.34]
["Current Liabilities",668.8,707.74,698.79,734.14,671.46]
["Provisions",7.53,24.16,47.55,34.18,20.329999999999998]
["Total CL & Provisions",676.33,731.9,746.34,768.32,691.79]
["Net Current Assets",-5.24,-199.42,468.03,155.65,143.55000000000001]
["Total Assets",2971.35,2685.75,2436.75,1747.14,1805.09]
[]
["Contingent Liabilities",49.12,40.58,31.03,49.95,146.34]
["Book Value (Rs)",82.38,73.67,69.06,65.13,61.13]
[]
[]
[]
["Source : Dion Global Solutions Limited"]
[]
["Results of HT Media"]
["News"]
["Results"]
["Estimates"]
["Analysis"]
["16.01.2019"]
["HT Media Q3 net profit down 68% at Rs 42.9cr on weak operating performance"]
["More »"]
["16.01.2019"]
["HT Media Q3 net profit down 68% at Rs 42.9cr on weak operating performance"]
["More »"]
["No news."]
["No news."]
["Results of Media & Entertainment Sector"]
["News"]
["Results"]
["Estimates"]
["Analysis"]
["No news."]
["No news."]
["No news."]
["No news."]
["Quick Links for htmedia"]
["News","Corporate Action","Information","Financials","Annual Report","Peer Comparison"]
["Business","Board Meetings","Company History","Balance Sheet","Directors Report","Competition"]
["Earnings","AGM/EGM","Listing Info","Profit & Loss","Chairman's Speech","Price"]
["Mgmt Interviews ","Bonus","Locations","Quarterly Results","Auditors Report","Price Performance"]
["Announcements","Rights","Bulk Deals","Half Yearly Results","Notes to Accounts","Market Cap"]
["Stock Views","Splits","Large Deals","Nine Monthly Results","Finished Goods","Net Sales"]
["Brokerage Reports","Dividends","Shareholding","Yearly Results","Raw Materials","Net Profit"]
["Sector",null,"MF Holding","Cash Flow","Background","Total Assets"]
[null,null,"Top Shareholders","Ratios","Board of Directors","Historical Prices"]
[null,null,"Promoter Holding",null,"Capital Structure","Price of HT%20Media on previous budgets"]
["Related Searches htmedia Stock Price, HT%20Media Stock Quote, HT%20Media Results , HT%20Media News .. More »"]
["Follow moneycontrol"]
["Facebook Twitter RSS Wap SMS SMS Alert iPad iPhone Blackberry OVI AndroidWindow"]
["Explore Moneycontrol"]
["Stocks     A | B | C | D | E | F | G | H | I | J | K | L | M | N | O | P | Q | R | S | T | U | V | W | X | Y | Z | Others"]
["Mutual Funds     A | B | C | D | E | F | G | H | I | J | K | L | M | N | O | P | Q | R | S | T | U | V | W | X | Y | Z"]
["Live Sensex | Public Sector Banks | Market Statistics | Plan Insurance | Global Market | Business News | Mutual Fund | Best Portfolio Manager | Bse Sensex | Nse Nifty | Commodities Price | Silver Price/Rate in India | Gold Price/Rate in India | Crude Oil | USD to INR | Bank Fixed Deposits | Company Fixed Deposits | Small Savings Schemes | Bonds | Budget 2019 | Tax Calculator | RBI Credit Policy | News Archive | FAQs | Financial Glossary | Message Board | Moneybhai | Think India | History India | Latest News | IBNLive News | News in Hindi | Cricket News | Online Study Material | India News |Restaurants in Kolkata | Online Shopping in India  | Cairn India | Euro | Infosys | Inflation | Silver | Glenmark Pharmaceuticals | Snapdeal | Starbucks | Narendra Modi | Crore | Clear Study Doubts | Education Franchisee Opportunity | Rss Feeds"]
["Site Map | About Us | Contact Us | Advertise | Bookmark | Disclaimer | Privacy Policy | Terms & Conditions | Careers"]
["Copyright © e-Eighteen.com Ltd. All rights reserved. Reproduction of news articles, photos, videos or any other content in whole or in part in any form or medium without express written permission of moneycontrol.com is prohibited."]

{"sheet":"htmedia PL","index":9,"n_rows":466,"n_cols":6,"rows_kept":466,"cut":false,"hidden":false,"merged":[]}
["English"]
["Hindi"]
["Gujarati"]
[]
["App"]
[]
["Subscription"]
["Specials"]
[]
[]
[]
[]
[]
[]
[]
[]
[]
[]
[]
["Quotes "]
["NAVs"]
["Commodities "]
["Futures & Options "]
["News "]
["Forum "]
["Notices "]
["Videos "]
["Glossary "]
["All "]
[]
["Stocks"]
["Feedback"]
["Log In"]
[]
["My Profile (Unverified)"]
["My Portfolio"]
["My Watchlist"]
["My Messages"]
["My Alerts"]
[]
["Sign Up"]
["Logout"]
[]
[]
[]
[]
[]
[]
[]
["Get App"]
["Log In"]
["Sign Up"]
["My Portfolio"]
["My Watchlist"]
["My Messages"]
["Sign out"]
[]
["Quotes "]
["NAVs"]
["Commodities "]
["Futures & Options "]
["News "]
["Forum "]
["Notices "]
["Videos "]
["Glossary "]
["All "]
["Auriferous Aqua Farma , 519363"]
["View All "]
["Select Language"]
["English"]
["à¤¹à¤¿à¤‚à¤¦à¥€"]
["à¤—à¥\u0081à¤œà¤°à¤¾à¤¤à¥€"]
["Home"]
["Lok Sabha Election 2019 "]
[]
["Stock Premier League "]
[]
["News"]
["Markets"]
["Portfolio"]
["Watchlist"]
["Forum"]
["Indian Indices"]
["Global Indices"]
["MoneySavers"]
["Live TV & Shows"]
["Video "]
[]
["Commodities"]
["Currencies"]
["Mutual Funds"]
["Personal Finance"]
["Podcast "]
[]
["Cryptocurrency"]
["Subscription"]
["Specials"]
["Invest Now"]
["Master Your Money"]
["SME Special"]
["Real Assets"]
["Travel Cafe"]
["Tech Control"]
["Home"]
[]
["Companies"]
["Economy"]
["Property"]
["Politics"]
["Auto"]
["Cricket"]
["World"]
["Announcements"]
["News"]
[]
["Business"]
["Markets"]
["Stocks"]
["Economy"]
["Research"]
["Mutual Funds"]
["Personal Finance"]
["Property"]
["Auto"]
["IPO"]
["Politics"]
["India"]
["World"]
["BFSI Tech "]
[]
["Consumer Tech"]
["Startups"]
["Opinion "]
[]
["Lok Sabha Election 2019"]
[]
["Home"]
["Opinion"]
["Videos"]
["Photos"]
["Podcasts"]
["Modinomics Review"]
["Millennial News"]
["Election Dates"]
["Lok Sabha News"]
["Assembly Election 2019"]
["Markets"]
[]
["Home"]
["Pre-Market"]
["Advice"]
["Technicals"]
["F&O"]
["Earnings"]
["IPO"]
["All Stats"]
["Indian Indices "]
[]
["Global Markets"]
["Currencies"]
["Crypto"]
["Bonds"]
["Broker Research"]
["Tools"]
["Terminal"]
["Mutual Funds"]
[]
["Home"]
["Performance Tracker"]
["Top Ranked Funds"]
["ETFs"]
["NFO"]
["Learn"]
["Evaluate"]
["Track"]
["Tools"]
["SEBI Re-categorisation"]
["Tax Saving FY19"]
["Commodities"]
["Insurance"]
[]
["Video"]
[]
["Managing Money with Moneycontrol"]
["The Udayan Show"]
["Ideas for Profit"]
["Markets@moneycontrol"]
["Commodities@Moneycontrol"]
["Podcast"]
[]
["Digging Deeper with Moneycontrol"]
["Stock Picks of the Day"]
["Editor's Story of the Day"]
["A Morning Walk Down Dalal Street"]
["An Evening Walk Down Dalal Street"]
["Personal Finance"]
[]
["Home"]
["Investing"]
["Insurance"]
["Banking"]
["Financial Planning"]
["Property"]
["Tools"]
["Video"]
["Ask Expert"]
["Explainer"]
["Portfolio"]
["Forum"]
["Be a Pro "]
[]
[]
["Home"]
["Stock Reports"]
["Ambareesh Balega"]
["CK Narayan"]
["Mitessh Thakkar"]
["Sudarshan Sukhani"]
["T Gnanasekar"]
["Mecklai Financial"]
["Power Your Trade"]
["Investment Watch"]
["Live TV"]
["Hindi"]
["Gujarati"]
["All Stocks"]
["App"]
["Subscriptions"]
["Specials"]
["Feedback"]
["Close Ad"]
["Verify your Moneycontrol account. Please verify your Email ID and Mobile Number today. Verify Now"]
[]
[]
[]
["A Quick View"]
["Stocks in news"]
["Stocks you last visited"]
["Watchlist"]
["Portfolio"]
["Customize Stack 1 Customize Stack 2 Customize Stack 3 Customize Stack 4"]
[]
["Customize"]
["Customize Stacks"]
["Customize Ticker"]
["Detach"]
["Recommendations"]
["1+1=11.Multiply your wealth now with multibaggers from poweryourtrade.com Subscribe Now"]
[]
["Power Your Trade"]
[]
["Quick View"]
["Customize Stacks Customize Ticker Detach Help Feedback"]
["Stocks in News"]
["Stocks Last Visited"]
["Watchlist"]
["Portfolio"]
["SENSEX NIFTY "]
[]
[]
[]
[]
["YOU ARE HERE > MONEYCONTROL > MARKETS > Media & Entertainment > Profit & Loss account - HT Media"]
["HT Media"]
["BSE: 532662|NSE: HTMEDIA|ISIN: INE501G01024|SECTOR: Media & Entertainment"]
["SET ALERT"]
["| "]
[]
["ADD TO PORTFOLIO | "]
["WATCHLIST "]
["LIVE"]
["BSE"]
["Apr 18, 16:00"]
[40.35]
["-0.2 (-0.49%)"]
["VOLUME 42,739"]
["LIVE"]
["NSE"]
["Apr 18, 15:41"]
[40.35]
["-0.4 (-0.98%)"]
["VOLUME 95,208"]
[]
["Quote"]
["CHARTS"]
["NEWS"]
["All News"]
["Business"]
["Earnings"]
["Management Interviews"]
["Stock Advice"]
["Research Reports"]
["Sector"]
["COMMENTS"]
["ANNOUNCEMENTS"]
["CORPORATE ACTION"]
["Board Meetings"]
["AGM/EGM"]
["Dividends"]
["Bonus"]
["Rights"]
["Splits"]
["FINANCIALS"]
["Balance Sheet"]
["Profit & Loss"]
["Quarterly Results"]
["Half Yearly Results"]
["Nine Monthly Results"]
["Yearly Results"]
["Cash Flow"]
["Ratios"]
["Capital Structure"]
["Financial Graphs"]
["ANNUAL REPORT"]
["Directors Report"]
["Chairman's Speech"]
["Auditors Report"]
["Notes To Accounts"]
["Accounting Policy"]
["Finished Products"]
["Raw Materials"]
["Investment Structure"]
["SHAREHOLDING"]
["Shareholding Pattern"]
["Mutual Funds Holding"]
["Top Public Shareholders"]
["Promoter Holding"]
["Bulk Deals"]
["Large Deals"]
["PEERS"]
["Competition"]
["Data Bank new"]
["Latest Price"]
["Stock Performance"]
["Market Cap"]
["Net Sales"]
["Net Profit"]
["Total Assets"]
["Fund managers holdings"]
["COMPANY INFO"]
["Management"]
["History"]
["Background"]
["Listing"]
["Location"]
["ALERTS"]
["Widgets"]
["BROKER"]
["RESEARCH "]
[]
["Track HT%20Media on the go with the moneycontrol app"]
["Result In"]
["new Format"]
["Result In"]
["Old Format"]
["Download Annual Report PDF Format 2017 | 2016 | 2015 | 2014 | 2013 | 2012 | 2011 | 2010 "]
["Standalone"]
["Consolidated"]
[]
["Print/Copy to Excel : "]
[]
["Previous Years »"]
["Profit & Loss account of HT Media","------------------- in Rs. Cr. -------------------"]
[null,"Mar 18",42795,42430,42064,41699]
[]
[null,"12 mths","12 mths","12 mths","12 mths","12 mths"]
[]
["INCOME"]
["Revenue From Operations [Gross]",1376.45,1418.89,1511.25,1436.56,1406.35]
["Revenue From Operations [Net]",1376.45,1418.89,1511.25,1436.56,1406.35]
["Other Operating Revenues",12.2,13.15,14.44,16.260000000000002,22.89]
["Total Operating Revenues",1388.65,1432.04,1525.7,1452.82,1429.25]
["Other Income",210.13,156.88999999999999,103.21,121.93,126.6]
["Total Revenue",1598.78,1588.93,1628.9,1574.75,1555.85]
["EXPENSES"]
["Cost Of Materials Consumed",298.44,351.51,381.33,404.77,404.66]
["Changes In Inventories Of FG,WIP And Stock-In Trade",0.01,0.05,0.01,-0.04,0.39]
["Employee Benefit Expenses",261.89999999999998,327.95,390.84,347.95,312.51]
["Finance Costs",69.599999999999994,78.680000000000007,51.38,36.03,55.57]
["Depreciation And Amortisation Expenses",96.74,97.47,69.39,71.67,56.21]
["Other Expenses",607.22,669.08,629.92999999999995,573.87,534.13]
["Total Expenses",1333.91,1524.74,1522.88,1434.25,1363.48]
[null,43160,42795,42430,42064,41699]
[]
[null,"12 mths","12 mths","12 mths","12 mths","12 mths"]
[]
["Profit/Loss Before Exceptional, ExtraOrdinary Items And Tax",264.87,64.19,106.02,140.5,192.37]
["Exceptional Items",-14.05,0,21.04,-16.690000000000001,0]
["Profit/Loss Before Tax",250.82,64.19,127.06,123.8,192.37]
["Tax Expenses-Continued Operations"]
["Current Tax",6.18,-8.25,60.97,23.38,23.17]
["Less: MAT Credit Entitlement",0,0,3.74,0,0]
["Deferred Tax",30.9,10.93,-4.97,-9.9,13.31]
["Tax For Earlier Years",0,0,-3.96,-3.33,0.25]
["Total Tax Expenses",37.08,2.68,48.3,10.14,36.729999999999997]
["Profit/Loss After Tax And Before ExtraOrdinary Items",213.74,61.51,78.760000000000005,113.66,155.63999999999999]
["Profit/Loss From Continuing Operations",213.74,61.51,78.760000000000005,113.66,155.63999999999999]
["Total Tax Expenses Discontinuing Operations",0,0,-29.23,0,0]
["Net Profit Loss From Discontinuing Operations",0,0,29.23,0,0]
["Profit/Loss For The Period",213.74,61.51,107.99,113.66,155.63999999999999]
[null,43160,42795,42430,42064,41699]
[]
[null,"12 mths","12 mths","12 mths","12 mths","12 mths"]
[]
["OTHER ADDITIONAL INFORMATION"]
["EARNINGS PER SHARE"]
["Basic EPS (Rs.)",9.18,2.64,4.6399999999999997,4.88,6.66]
["Diluted EPS (Rs.)",9.18,2.64,4.6399999999999997,4.88,6.66]
["VALUE OF IMPORTED AND INDIGENIOUS RAW MATERIALS"]
["Imported Raw Materials",0,0,315.11,315.33999999999997,323.35000000000002]
["Indigenous Raw Materials",0,0,66.22,89.43,81.3]
["STORES, SPARES AND LOOSE TOOLS"]
["Imported Stores And Spares",0,0,5.98,7.16,4.88]
["Indigenous Stores And Spares",0,0,30.65,30.71,31.93]
["DIVIDEND AND DIVIDEND PERCENTAGE"]
["Equity Share Dividend",9.31,9.31,9.31,9.31,9.2899999999999991]
["Tax On Dividend",0.56000000000000005,0.56000000000000005,0.56000000000000005,0.78,0.47]
["Equity Dividend Rate (%)",20,20,20,20,20]
[]
[]
[]
["Source : Dion Global Solutions Limited"]
[]
["Results of HT Media"]
["News"]
["Results"]
["Estimates"]
["Analysis"]
["16.01.2019"]
["HT Media Q3 net profit down 68% at Rs 42.9cr on weak operating performance"]
["More »"]
["16.01.2019"]
["HT Media Q3 net profit down 68% at Rs 42.9cr on weak operating performance"]
["More »"]
["No news."]
["No news."]
["Results of Media & Entertainment Sector"]
["News"]
["Results"]
["Estimates"]
["Analysis"]
["No news."]
["No news."]
["No news."]
["No news."]
["Quick Links for htmedia"]
["News","Corporate Action","Information","Financials","Annual Report","Peer Comparison"]
["Business","Board Meetings","Company History","Balance Sheet","Directors Report","Competition"]
["Earnings","AGM/EGM","Listing Info","Profit & Loss","Chairman's Speech","Price"]
["Mgmt Interviews ","Bonus","Locations","Quarterly Results","Auditors Report","Price Performance"]
["Announcements","Rights","Bulk Deals","Half Yearly Results","Notes to Accounts","Market Cap"]
["Stock Views","Splits","Large Deals","Nine Monthly Results","Finished Goods","Net Sales"]
["Brokerage Reports","Dividends","Shareholding","Yearly Results","Raw Materials","Net Profit"]
["Sector",null,"MF Holding","Cash Flow","Background","Total Assets"]
[null,null,"Top Shareholders","Ratios","Board of Directors","Historical Prices"]
[null,null,"Promoter Holding",null,"Capital Structure","Price of HT%20Media on previous budgets"]
["Related Searches htmedia Stock Price, HT%20Media Stock Quote, HT%20Media Results , HT%20Media News .. More »"]
["Follow moneycontrol"]
["Facebook Twitter RSS Wap SMS SMS Alert iPad iPhone Blackberry OVI AndroidWindow"]
["Explore Moneycontrol"]
["Stocks     A | B | C | D | E | F | G | H | I | J | K | L | M | N | O | P | Q | R | S | T | U | V | W | X | Y | Z | Others"]
["Mutual Funds     A | B | C | D | E | F | G | H | I | J | K | L | M | N | O | P | Q | R | S | T | U | V | W | X | Y | Z"]
["Live Sensex | Public Sector Banks | Market Statistics | Plan Insurance | Global Market | Business News | Mutual Fund | Best Portfolio Manager | Bse Sensex | Nse Nifty | Commodities Price | Silver Price/Rate in India | Gold Price/Rate in India | Crude Oil | USD to INR | Bank Fixed Deposits | Company Fixed Deposits | Small Savings Schemes | Bonds | Budget 2019 | Tax Calculator | RBI Credit Policy | News Archive | FAQs | Financial Glossary | Message Board | Moneybhai | Think India | History India | Latest News | IBNLive News | News in Hindi | Cricket News | Online Study Material | India News |Restaurants in Mumbai | Online Shopping in India  | Cairn India | Euro | Infosys | Inflation | Silver | Glenmark Pharmaceuticals | Snapdeal | Starbucks | Narendra Modi | Crore | Clear Study Doubts | Education Franchisee Opportunity | Rss Feeds"]
["Site Map | About Us | Contact Us | Advertise | Bookmark | Disclaimer | Privacy Policy | Terms & Conditions | Careers"]
["Copyright © e-Eighteen.com Ltd. All rights reserved. Reproduction of news articles, photos, videos or any other content in whole or in part in any form or medium without express written permission of moneycontrol.com is prohibited."]

{"sheet":"htmedia Ratios","index":10,"n_rows":468,"n_cols":6,"rows_kept":468,"cut":false,"hidden":false,"merged":[]}
["English"]
["Hindi"]
["Gujarati"]
[]
["App"]
[]
["Subscription"]
["Specials"]
[]
[]
[]
[]
[]
[]
[]
[]
[]
[]
[]
["Quotes "]
["NAVs"]
["Commodities "]
["Futures & Options "]
["News "]
["Forum "]
["Notices "]
["Videos "]
["Glossary "]
["All "]
[]
["Stocks"]
["Feedback"]
["Log In"]
[]
["My Profile (Unverified)"]
["My Portfolio"]
["My Watchlist"]
["My Messages"]
["My Alerts"]
[]
["Sign Up"]
["Logout"]
[]
[]
[]
[]
[]
[]
[]
["Get App"]
["Log In"]
["Sign Up"]
["My Portfolio"]
["My Watchlist"]
["My Messages"]
["Sign out"]
[]
["Quotes "]
["NAVs"]
["Commodities "]
["Futures & Options "]
["News "]
["Forum "]
["Notices "]
["Videos "]
["Glossary "]
["All "]
["Auriferous Aqua Farma , 519363"]
["View All "]
["Select Language"]
["English"]
["à¤¹à¤¿à¤‚à¤¦à¥€"]
["à¤—à¥\u0081à¤œà¤°à¤¾à¤¤à¥€"]
["Home"]
["Lok Sabha Election 2019 "]
[]
["Stock Premier League "]
[]
["News"]
["Markets"]
["Portfolio"]
["Watchlist"]
["Forum"]
["Indian Indices"]
["Global Indices"]
["MoneySavers"]
["Live TV & Shows"]
["Video "]
[]
["Commodities"]
["Currencies"]
["Mutual Funds"]
["Personal Finance"]
["Podcast "]
[]
["Cryptocurrency"]
["Subscription"]
["Specials"]
["Invest Now"]
["Master Your Money"]
["SME Special"]
["Real Assets"]
["Travel Cafe"]
["Tech Control"]
["Home"]
[]
["Companies"]
["Economy"]
["Property"]
["Politics"]
["Auto"]
["Cricket"]
["World"]
["Announcements"]
["News"]
[]
["Business"]
["Markets"]
["Stocks"]
["Economy"]
["Research"]
["Mutual Funds"]
["Personal Finance"]
["Property"]
["Auto"]
["IPO"]
["Politics"]
["India"]
["World"]
["BFSI Tech "]
[]
["Consumer Tech"]
["Startups"]
["Opinion "]
[]
["Lok Sabha Election 2019"]
[]
["Home"]
["Opinion"]
["Videos"]
["Photos"]
["Podcasts"]
["Modinomics Review"]
["Millennial News"]
["Election Dates"]
["Lok Sabha News"]
["Assembly Election 2019"]
["Markets"]
[]
["Home"]
["Pre-Market"]
["Advice"]
["Technicals"]
["F&O"]
["Earnings"]
["IPO"]
["All Stats"]
["Indian Indices "]
[]
["Global Markets"]
["Currencies"]
["Crypto"]
["Bonds"]
["Broker Research"]
["Tools"]
["Terminal"]
["Mutual Funds"]
[]
["Home"]
["Performance Tracker"]
["Top Ranked Funds"]
["ETFs"]
["NFO"]
["Learn"]
["Evaluate"]
["Track"]
["Tools"]
["SEBI Re-categorisation"]
["Tax Saving FY19"]
["Commodities"]
["Insurance"]
[]
["Video"]
[]
["Managing Money with Moneycontrol"]
["The Udayan Show"]
["Ideas for Profit"]
["Markets@moneycontrol"]
["Commodities@Moneycontrol"]
["Podcast"]
[]
["Digging Deeper with Moneycontrol"]
["Stock Picks of the Day"]
["Editor's Story of the Day"]
["A Morning Walk Down Dalal Street"]
["An Evening Walk Down Dalal Street"]
["Personal Finance"]
[]
["Home"]
["Investing"]
["Insurance"]
["Banking"]
["Financial Planning"]
["Property"]
["Tools"]
["Video"]
["Ask Expert"]
["Explainer"]
["Portfolio"]
["Forum"]
["Be a Pro "]
[]
[]
["Home"]
["Stock Reports"]
["Ambareesh Balega"]
["CK Narayan"]
["Mitessh Thakkar"]
["Sudarshan Sukhani"]
["T Gnanasekar"]
["Mecklai Financial"]
["Power Your Trade"]
["Investment Watch"]
["Live TV"]
["Hindi"]
["Gujarati"]
["All Stocks"]
["App"]
["Subscriptions"]
["Specials"]
["Feedback"]
["Close Ad"]
["Verify your Moneycontrol account. Please verify your Email ID and Mobile Number today. Verify Now"]
[]
[]
[]
["A Quick View"]
["Stocks in news"]
["Stocks you last visited"]
["Watchlist"]
["Portfolio"]
["Customize Stack 1 Customize Stack 2 Customize Stack 3 Customize Stack 4"]
[]
["Customize"]
["Customize Stacks"]
["Customize Ticker"]
["Detach"]
["Recommendations"]
["1+1=11.Multiply your wealth now with multibaggers from poweryourtrade.com Subscribe Now"]
[]
["Power Your Trade"]
[]
["Quick View"]
["Customize Stacks Customize Ticker Detach Help Feedback"]
["Stocks in News"]
["Stocks Last Visited"]
["Watchlist"]
["Portfolio"]
["SENSEX NIFTY "]
[]
[]
[]
[]
["YOU ARE HERE > MONEYCONTROL > MARKETS > Media & Entertainment > Key Financial Ratios - HT Media"]
["HT Media"]
["BSE: 532662|NSE: HTMEDIA|ISIN: INE501G01024|SECTOR: Media & Entertainment"]
["SET ALERT"]
["| "]
[]
["ADD TO PORTFOLIO | "]
["WATCHLIST "]
["LIVE"]
["BSE"]
["Apr 18, 16:00"]
[40.35]
["-0.2 (-0.49%)"]
["VOLUME 42,739"]
["LIVE"]
["NSE"]
["Apr 18, 15:41"]
[40.35]
["-0.4 (-0.98%)"]
["VOLUME 95,208"]
[]
["Quote"]
["CHARTS"]
["NEWS"]
["All News"]
["Business"]
["Earnings"]
["Management Interviews"]
["Stock Advice"]
["Research Reports"]
["Sector"]
["COMMENTS"]
["ANNOUNCEMENTS"]
["CORPORATE ACTION"]
["Board Meetings"]
["AGM/EGM"]
["Dividends"]
["Bonus"]
["Rights"]
["Splits"]
["FINANCIALS"]
["Balance Sheet"]
["Profit & Loss"]
["Quarterly Results"]
["Half Yearly Results"]
["Nine Monthly Results"]
["Yearly Results"]
["Cash Flow"]
["Ratios"]
["Capital Structure"]
["Financial Graphs"]
["ANNUAL REPORT"]
["Directors Report"]
["Chairman's Speech"]
["Auditors Report"]
["Notes To Accounts"]
["Accounting Policy"]
["Finished Products"]
["Raw Materials"]
["Investment Structure"]
["SHAREHOLDING"]
["Shareholding Pattern"]
["Mutual Funds Holding"]
["Top Public Shareholders"]
["Promoter Holding"]
["Bulk Deals"]
["Large Deals"]
["PEERS"]
["Competition"]
["Data Bank new"]
["Latest Price"]
["Stock Performance"]
["Market Cap"]
["Net Sales"]
["Net Profit"]
["Total Assets"]
["Fund managers holdings"]
["COMPANY INFO"]
["Management"]
["History"]
["Background"]
["Listing"]
["Location"]
["ALERTS"]
["Widgets"]
["BROKER"]
["RESEARCH "]
[]
["Track HT%20Media on the go with the moneycontrol app"]
["Result In"]
["new Format"]
["Result In"]
["Old Format"]
["Download Annual Report PDF Format 2017 | 2016 | 2015 | 2014 | 2013 | 2012 | 2011 | 2010 "]
["Standalone"]
["Consolidated"]
[]
["Print/Copy to Excel : "]
[]
["Previous Years »"]
["Key Financial Ratios of HT Media"]
[]
[]
[null,"Mar '18","Mar '17","Mar '16","Mar '15","Mar '14"]
[]
["Investment Valuation Ratios"]
["Face Value",2,2,2,2,2]
["Dividend Per Share",0.4,0.4,0.4,0.4,0.4]
["Operating Profit Per Share (Rs)",9.59,3.62,5.36,5.48,7.71]
["Net Operating Profit Per Share (Rs)",60.23,62.12,66.180000000000007,63.02,62.03]
["Free Reserves Per Share (Rs)","--","--","--","--","--"]
["Bonus in Equity Capital","--","--","--","--","--"]
["Profitability Ratios"]
["Operating Profit Margin(%)",15.92,5.82,8.1,8.69,12.42]
["Profit Before Interest And Tax Margin(%)",7.77,-0.88,3.32,3.46,7.79]
["Gross Profit Margin(%)",8.9499999999999993,-0.97,3.55,3.75,8.48]
["Cash Profit Margin(%)",20.29,10,7.8,12.82,13.61]
["Adjusted Cash Margin(%)",20.29,10,7.8,12.82,13.61]
["Net Profit Margin(%)",15.39,4.29,7.07,7.82,10.88]
["Adjusted Net Profit Margin(%)",13.36,3.87,6.62,7.21,10]
["Return On Capital Employed(%)",11.25,5.31,6.35,10.1,13.73]
["Return On Net Worth(%)",11.25,3.62,6.78,7.56,11.04]
["Adjusted Return on Net Worth(%)",11.99,3.62,3.62,8.68,11.04]
["Return on Assets Excluding Revaluations",82.38,73.67,69.06,65.13,61.13]
["Return on Assets Including Revaluations",82.38,73.67,69.06,65.13,61.13]
["Return on Long Term Funds(%)",17.55,8.32,9.64,11.25,17.03]
["Liquidity And Solvency Ratios"]
["Current Ratio",0.24,0.2,0.5,0.94,0.74]
["Quick Ratio",0.87,0.56000000000000005,1.47,1.06,0.93]
["Debt Equity Ratio",0.56000000000000005,0.57999999999999996,0.56000000000000005,0.16,0.28000000000000003]
["Long Term Debt Equity Ratio","--",0.01,0.02,0.05,0.03]
["Debt Coverage Ratios"]
["Interest Cover",4.8099999999999996,1.82,3.06,4.9000000000000004,4.46]
["Total Debt to Owners Fund",0.56000000000000005,0.57999999999999996,0.56000000000000005,0.16,0.28000000000000003]
["Financial Charges Coverage Ratio",6.2,3.05,4.41,6.89,5.47]
["Financial Charges Coverage Ratio Post Tax",5.46,3.02,4.45,6.14,4.8099999999999996]
["Management Efficiency Ratios"]
["Inventory Turnover Ratio",18,13.27,13.38,13.35,7.42]
["Debtors Turnover Ratio",7.01,6.84,6.96,7.52,7.43]
["Investments Turnover Ratio",18,13.27,13.38,13.35,7.42]
["Fixed Assets Turnover Ratio",2.52,2.59,1.61,1.61,1.59]
["Total Assets Turnover Ratio",0.54,0.64,0.71,0.85,0.81]
["Asset Turnover Ratio",0.49,0.55000000000000004,0.72,0.82,0.83]
[]
["Average Raw Material Holding","--","--","--","--","--"]
["Average Finished Goods Held","--","--","--","--","--"]
["Number of Days In Working Capital",-41.87,-83.99,84.21,15.26,26.75]
["Profit & Loss Account Ratios"]
["Material Cost Composition",23.47,26.65,27.39,30.46,30.88]
["Imported Composition of Raw Materials Consumed","--","--",82.63,77.900000000000006,79.900000000000006]
["Selling Distribution Cost Composition",8.44,7.85,9.5,"--","--"]
["Expenses as Composition of Total Sales",0.89,"--",1.69,2.6,17.72]
["Cash Flow Indicator Ratios"]
["Dividend Payout Ratio Net Profit",4.3499999999999996,15.13,8.6199999999999992,8.19,5.96]
["Dividend Payout Ratio Cash Profit",2.99,5.85,5.24,5.0199999999999996,4.38]
["Earning Retention Ratio",95.92,84.87,83.88,92.86,94.04]
["Cash Earning Retention Ratio",97.14,94.15,92.68,95.4,95.62]
["AdjustedCash Flow Times",3.3,6.21,6.96,1.22,1.87]
[]
[]
[]
["Source : Dion Global Solutions Limited"]
[]
["Results of HT Media"]
["News"]
["Results"]
["Estimates"]
["Analysis"]
["16.01.2019"]
["HT Media Q3 net profit down 68% at Rs 42.9cr on weak operating performance"]
["More »"]
["16.01.2019"]
["HT Media Q3 net profit down 68% at Rs 42.9cr on weak operating performance"]
["More »"]
["No news."]
["No news."]
["Results of Media & Entertainment Sector"]
["News"]
["Results"]
["Estimates"]
["Analysis"]
["No news."]
["No news."]
["No news."]
["No news."]
["Quick Links for htmedia"]
["News","Corporate Action","Information","Financials","Annual Report","Peer Comparison"]
["Business","Board Meetings","Company History","Balance Sheet","Directors Report","Competition"]
["Earnings","AGM/EGM","Listing Info","Profit & Loss","Chairman's Speech","Price"]
["Mgmt Interviews ","Bonus","Locations","Quarterly Results","Auditors Report","Price Performance"]
["Announcements","Rights","Bulk Deals","Half Yearly Results","Notes to Accounts","Market Cap"]
["Stock Views","Splits","Large Deals","Nine Monthly Results","Finished Goods","Net Sales"]
["Brokerage Reports","Dividends","Shareholding","Yearly Results","Raw Materials","Net Profit"]
["Sector",null,"MF Holding","Cash Flow","Background","Total Assets"]
[null,null,"Top Shareholders","Ratios","Board of Directors","Historical Prices"]
[null,null,"Promoter Holding",null,"Capital Structure","Price of HT%20Media on previous budgets"]
["Related Searches htmedia Stock Price, HT%20Media Stock Quote, HT%20Media Results , HT%20Media News .. More »"]
["Follow moneycontrol"]
["Facebook Twitter RSS Wap SMS SMS Alert iPad iPhone Blackberry OVI AndroidWindow"]
["Explore Moneycontrol"]
["Stocks     A | B | C | D | E | F | G | H | I | J | K | L | M | N | O | P | Q | R | S | T | U | V | W | X | Y | Z | Others"]
["Mutual Funds     A | B | C | D | E | F | G | H | I | J | K | L | M | N | O | P | Q | R | S | T | U | V | W | X | Y | Z"]
["Live Sensex | Public Sector Banks | Market Statistics | Plan Insurance | Global Market | Business News | Mutual Fund | Best Portfolio Manager | Bse Sensex | Nse Nifty | Commodities Price | Silver Price/Rate in India | Gold Price/Rate in India | Crude Oil | USD to INR | Bank Fixed Deposits | Company Fixed Deposits | Small Savings Schemes | Bonds | Budget 2019 | Tax Calculator | RBI Credit Policy | News Archive | FAQs | Financial Glossary | Message Board | Moneybhai | Think India | History India | Latest News | IBNLive News | News in Hindi | Cricket News | Online Study Material | India News |Restaurants in Chennai | Online Shopping in India  | Cairn India | Euro | Infosys | Inflation | Silver | Glenmark Pharmaceuticals | Snapdeal | Starbucks | Narendra Modi | Crore | Clear Study Doubts | Education Franchisee Opportunity | Rss Feeds"]
["Site Map | About Us | Contact Us | Advertise | Bookmark | Disclaimer | Privacy Policy | Terms & Conditions | Careers"]
["Copyright © e-Eighteen.com Ltd. All rights reserved. Reproduction of news articles, photos, videos or any other content in whole or in part in any form or medium without express written permission of moneycontrol.com is prohibited."]

{"sheet":"htmedia CF","index":11,"n_rows":423,"n_cols":6,"rows_kept":423,"cut":false,"hidden":false,"merged":[]}
["English"]
["Hindi"]
["Gujarati"]
[]
["App"]
[]
["Subscription"]
["Specials"]
[]
[]
[]
[]
[]
[]
[]
[]
[]
[]
[]
["Quotes "]
["NAVs"]
["Commodities "]
["Futures & Options "]
["News "]
["Forum "]
["Notices "]
["Videos "]
["Glossary "]
["All "]
[]
["Stocks"]
["Feedback"]
["Log In"]
[]
["My Profile (Unverified)"]
["My Portfolio"]
["My Watchlist"]
["My Messages"]
["My Alerts"]
[]
["Sign Up"]
["Logout"]
[]
[]
[]
[]
[]
[]
[]
["Get App"]
["Log In"]
["Sign Up"]
["My Portfolio"]
["My Watchlist"]
["My Messages"]
["Sign out"]
[]
["Quotes "]
["NAVs"]
["Commodities "]
["Futures & Options "]
["News "]
["Forum "]
["Notices "]
["Videos "]
["Glossary "]
["All "]
["Auriferous Aqua Farma , 519363"]
["View All "]
["Select Language"]
["English"]
["à¤¹à¤¿à¤‚à¤¦à¥€"]
["à¤—à¥\u0081à¤œà¤°à¤¾à¤¤à¥€"]
["Home"]
["Lok Sabha Election 2019 "]
[]
["Stock Premier League "]
[]
["News"]
["Markets"]
["Portfolio"]
["Watchlist"]
["Forum"]
["Indian Indices"]
["Global Indices"]
["MoneySavers"]
["Live TV & Shows"]
["Video "]
[]
["Commodities"]
["Currencies"]
["Mutual Funds"]
["Personal Finance"]
["Podcast "]
[]
["Cryptocurrency"]
["Subscription"]
["Specials"]
["Invest Now"]
["Master Your Money"]
["SME Special"]
["Real Assets"]
["Travel Cafe"]
["Tech Control"]
["Home"]
[]
["Companies"]
["Economy"]
["Property"]
["Politics"]
["Auto"]
["Cricket"]
["World"]
["Announcements"]
["News"]
[]
["Business"]
["Markets"]
["Stocks"]
["Economy"]
["Research"]
["Mutual Funds"]
["Personal Finance"]
["Property"]
["Auto"]
["IPO"]
["Politics"]
["India"]
["World"]
["BFSI Tech "]
[]
["Consumer Tech"]
["Startups"]
["Opinion "]
[]
["Lok Sabha Election 2019"]
[]
["Home"]
["Opinion"]
["Videos"]
["Photos"]
["Podcasts"]
["Modinomics Review"]
["Millennial News"]
["Election Dates"]
["Lok Sabha News"]
["Assembly Election 2019"]
["Markets"]
[]
["Home"]
["Pre-Market"]
["Advice"]
["Technicals"]
["F&O"]
["Earnings"]
["IPO"]
["All Stats"]
["Indian Indices "]
[]
["Global Markets"]
["Currencies"]
["Crypto"]
["Bonds"]
["Broker Research"]
["Tools"]
["Terminal"]
["Mutual Funds"]
[]
["Home"]
["Performance Tracker"]
["Top Ranked Funds"]
["ETFs"]
["NFO"]
["Learn"]
["Evaluate"]
["Track"]
["Tools"]
["SEBI Re-categorisation"]
["Tax Saving FY19"]
["Commodities"]
["Insurance"]
[]
["Video"]
[]
["Managing Money with Moneycontrol"]
["The Udayan Show"]
["Ideas for Profit"]
["Markets@moneycontrol"]
["Commodities@Moneycontrol"]
["Podcast"]
[]
["Digging Deeper with Moneycontrol"]
["Stock Picks of the Day"]
["Editor's Story of the Day"]
["A Morning Walk Down Dalal Street"]
["An Evening Walk Down Dalal Street"]
["Personal Finance"]
[]
["Home"]
["Investing"]
["Insurance"]
["Banking"]
["Financial Planning"]
["Property"]
["Tools"]
["Video"]
["Ask Expert"]
["Explainer"]
["Portfolio"]
["Forum"]
["Be a Pro "]
[]
[]
["Home"]
["Stock Reports"]
["Ambareesh Balega"]
["CK Narayan"]
["Mitessh Thakkar"]
["Sudarshan Sukhani"]
["T Gnanasekar"]
["Mecklai Financial"]
["Power Your Trade"]
["Investment Watch"]
["Live TV"]
["Hindi"]
["Gujarati"]
["All Stocks"]
["App"]
["Subscriptions"]
["Specials"]
["Feedback"]
["Close Ad"]
["Verify your Moneycontrol account. Please verify your Email ID and Mobile Number today. Verify Now"]
[]
[]
[]
["A Quick View"]
["Stocks in news"]
["Stocks you last visited"]
["Watchlist"]
["Portfolio"]
["Customize Stack 1 Customize Stack 2 Customize Stack 3 Customize Stack 4"]
[]
["Customize"]
["Customize Stacks"]
["Customize Ticker"]
["Detach"]
["Recommendations"]
["1+1=11.Multiply your wealth now with multibaggers from poweryourtrade.com Subscribe Now"]
[]
["Power Your Trade"]
[]
["Quick View"]
["Customize Stacks Customize Ticker Detach Help Feedback"]
["Stocks in News"]
["Stocks Last Visited"]
["Watchlist"]
["Portfolio"]
["SENSEX NIFTY "]
[]
[]
[]
[]
["YOU ARE HERE > MONEYCONTROL > MARKETS > Media & Entertainment > Cash Flow - HT Media"]
["HT Media"]
["BSE: 532662|NSE: HTMEDIA|ISIN: INE501G01024|SECTOR: Media & Entertainment"]
["SET ALERT"]
["| "]
[]
["ADD TO PORTFOLIO | "]
["WATCHLIST "]
["LIVE"]
["BSE"]
["Apr 18, 16:00"]
[40.35]
["-0.2 (-0.49%)"]
["VOLUME 42,739"]
["LIVE"]
["NSE"]
["Apr 18, 15:41"]
[40.35]
["-0.4 (-0.98%)"]
["VOLUME 95,208"]
[]
["Quote"]
["CHARTS"]
["NEWS"]
["All News"]
["Business"]
["Earnings"]
["Management Interviews"]
["Stock Advice"]
["Research Reports"]
["Sector"]
["COMMENTS"]
["ANNOUNCEMENTS"]
["CORPORATE ACTION"]
["Board Meetings"]
["AGM/EGM"]
["Dividends"]
["Bonus"]
["Rights"]
["Splits"]
["FINANCIALS"]
["Balance Sheet"]
["Profit & Loss"]
["Quarterly Results"]
["Half Yearly Results"]
["Nine Monthly Results"]
["Yearly Results"]
["Cash Flow"]
["Ratios"]
["Capital Structure"]
["Financial Graphs"]
["ANNUAL REPORT"]
["Directors Report"]
["Chairman's Speech"]
["Auditors Report"]
["Notes To Accounts"]
["Accounting Policy"]
["Finished Products"]
["Raw Materials"]
["Investment Structure"]
["SHAREHOLDING"]
["Shareholding Pattern"]
["Mutual Funds Holding"]
["Top Public Shareholders"]
["Promoter Holding"]
["Bulk Deals"]
["Large Deals"]
["PEERS"]
["Competition"]
["Data Bank new"]
["Latest Price"]
["Stock Performance"]
["Market Cap"]
["Net Sales"]
["Net Profit"]
["Total Assets"]
["Fund managers holdings"]
["COMPANY INFO"]
["Management"]
["History"]
["Background"]
["Listing"]
["Location"]
["ALERTS"]
["Widgets"]
["BROKER"]
["RESEARCH "]
[]
["Track HT%20Media on the go with the moneycontrol app"]
["Result In"]
["new Format"]
["Result In"]
["Old Format"]
["Download Annual Report PDF Format 2017 | 2016 | 2015 | 2014 | 2013 | 2012 | 2011 | 2010 "]
["Standalone"]
["Consolidated"]
[]
["Print/Copy to Excel : "]
[]
["Previous Years »"]
["Cash Flow of HT Media","------------------- in Rs. Cr. -------------------"]
[null,"Mar '18","Mar '17","Mar '16","Mar '15","Mar '14"]
[]
[null,"12 mths","12 mths","12 mths","12 mths","12 mths"]
[]
["Net Profit Before Tax",250.82,64.19,127.06,123.8,192.37]
["Net Cash From Operating Activities",190.3,191.21,0,291.23,183.34]
["Net Cash (used in)/from",-172.58,-214.97,0,-23.89,-193.74]
["Investing Activities"]
["Net Cash (used in)/from Financing Activities",7.17,10.79,0,-223.56,-14.29]
["Net (decrease)/increase In Cash and Cash Equivalents",24.89,-12.97,-32.1,43.78,-24.69]
["Opening Cash & Cash Equivalents",55.59,68.56,115.92,72.14,96.83]
["Closing Cash & Cash Equivalents",80.48,55.59,83.82,115.92,72.14]
[]
[]
[]
["Source : Dion Global Solutions Limited"]
[]
["Results of HT Media"]
["News"]
["Results"]
["Estimates"]
["Analysis"]
["16.01.2019"]
["HT Media Q3 net profit down 68% at Rs 42.9cr on weak operating performance"]
["More »"]
["16.01.2019"]
["HT Media Q3 net profit down 68% at Rs 42.9cr on weak operating performance"]
["More »"]
["No news."]
["No news."]
["Results of Media & Entertainment Sector"]
["News"]
["Results"]
["Estimates"]
["Analysis"]
["No news."]
["No news."]
["No news."]
["No news."]
["Quick Links for htmedia"]
["News","Corporate Action","Information","Financials","Annual Report","Peer Comparison"]
["Business","Board Meetings","Company History","Balance Sheet","Directors Report","Competition"]
["Earnings","AGM/EGM","Listing Info","Profit & Loss","Chairman's Speech","Price"]
["Mgmt Interviews ","Bonus","Locations","Quarterly Results","Auditors Report","Price Performance"]
["Announcements","Rights","Bulk Deals","Half Yearly Results","Notes to Accounts","Market Cap"]
["Stock Views","Splits","Large Deals","Nine Monthly Results","Finished Goods","Net Sales"]
["Brokerage Reports","Dividends","Shareholding","Yearly Results","Raw Materials","Net Profit"]
["Sector",null,"MF Holding","Cash Flow","Background","Total Assets"]
[null,null,"Top Shareholders","Ratios","Board of Directors","Historical Prices"]
[null,null,"Promoter Holding",null,"Capital Structure","Price of HT%20Media on previous budgets"]
["Related Searches htmedia Stock Price, HT%20Media Stock Quote, HT%20Media Results , HT%20Media News .. More »"]
["Follow moneycontrol"]
["Facebook Twitter RSS Wap SMS SMS Alert iPad iPhone Blackberry OVI AndroidWindow"]
["Explore Moneycontrol"]
["Stocks     A | B | C | D | E | F | G | H | I | J | K | L | M | N | O | P | Q | R | S | T | U | V | W | X | Y | Z | Others"]
["Mutual Funds     A | B | C | D | E | F | G | H | I | J | K | L | M | N | O | P | Q | R | S | T | U | V | W | X | Y | Z"]
["Live Sensex | Public Sector Banks | Market Statistics | Plan Insurance | Global Market | Business News | Mutual Fund | Best Portfolio Manager | Bse Sensex | Nse Nifty | Commodities Price | Silver Price/Rate in India | Gold Price/Rate in India | Crude Oil | USD to INR | Bank Fixed Deposits | Company Fixed Deposits | Small Savings Schemes | Bonds | Budget 2019 | Tax Calculator | RBI Credit Policy | News Archive | FAQs | Financial Glossary | Message Board | Moneybhai | Think India | History India | Latest News | IBNLive News | News in Hindi | Cricket News | Online Study Material | India News |Restaurants in Kolkata | Online Shopping in India  | Cairn India | Euro | Infosys | Inflation | Silver | Glenmark Pharmaceuticals | Snapdeal | Starbucks | Narendra Modi | Crore | Clear Study Doubts | Education Franchisee Opportunity | Rss Feeds"]
["Site Map | About Us | Contact Us | Advertise | Bookmark | Disclaimer | Privacy Policy | Terms & Conditions | Careers"]
["Copyright © e-Eighteen.com Ltd. All rights reserved. Reproduction of news articles, photos, videos or any other content in whole or in part in any form or medium without express written permission of moneycontrol.com is prohibited."]

{"sheet":"relianceindustries BS","index":12,"n_rows":463,"n_cols":6,"rows_kept":463,"cut":false,"hidden":false,"merged":[]}
["English"]
["Hindi"]
["Gujarati"]
[]
["App"]
[]
["Subscription"]
["Specials"]
[]
[]
[]
[]
[]
[]
[]
[]
[]
[]
[]
["Quotes "]
["NAVs"]
["Commodities "]
["Futures & Options "]
["News "]
["Forum "]
["Notices "]
["Videos "]
["Glossary "]
["All "]
[]
["Stocks"]
["Feedback"]
["Log In"]
[]
["My Profile (Unverified)"]
["My Portfolio"]
["My Watchlist"]
["My Messages"]
["My Alerts"]
[]
["Sign Up"]
["Logout"]
[]
[]
[]
[]
[]
[]
[]
["Get App"]
["Log In"]
["Sign Up"]
["My Portfolio"]
["My Watchlist"]
["My Messages"]
["Sign out"]
[]
["Quotes "]
["NAVs"]
["Commodities "]
["Futures & Options "]
["News "]
["Forum "]
["Notices "]
["Videos "]
["Glossary "]
["All "]
["Auriferous Aqua Farma , 519363"]
["View All "]
["Select Language"]
["English"]
["à¤¹à¤¿à¤‚à¤¦à¥€"]
["à¤—à¥\u0081à¤œà¤°à¤¾à¤¤à¥€"]
["Home"]
["Lok Sabha Election 2019 "]
[]
["Stock Premier League "]
[]
["News"]
["Markets"]
["Portfolio"]
["Watchlist"]
["Forum"]
["Indian Indices"]
["Global Indices"]
["MoneySavers"]
["Live TV & Shows"]
["Video "]
[]
["Commodities"]
["Currencies"]
["Mutual Funds"]
["Personal Finance"]
["Podcast "]
[]
["Cryptocurrency"]
["Subscription"]
["Specials"]
["Invest Now"]
["Master Your Money"]
["SME Special"]
["Real Assets"]
["Travel Cafe"]
["Tech Control"]
["Home"]
[]
["Companies"]
["Economy"]
["Property"]
["Politics"]
["Auto"]
["Cricket"]
["World"]
["Announcements"]
["News"]
[]
["Business"]
["Markets"]
["Stocks"]
["Economy"]
["Research"]
["Mutual Funds"]
["Personal Finance"]
["Property"]
["Auto"]
["IPO"]
["Politics"]
["India"]
["World"]
["BFSI Tech "]
[]
["Consumer Tech"]
["Startups"]
["Opinion "]
[]
["Lok Sabha Election 2019"]
[]
["Home"]
["Opinion"]
["Videos"]
["Photos"]
["Podcasts"]
["Modinomics Review"]
["Millennial News"]
["Election Dates"]
["Lok Sabha News"]
["Assembly Election 2019"]
["Markets"]
[]
["Home"]
["Pre-Market"]
["Advice"]
["Technicals"]
["F&O"]
["Earnings"]
["IPO"]
["All Stats"]
["Indian Indices "]
[]
["Global Markets"]
["Currencies"]
["Crypto"]
["Bonds"]
["Broker Research"]
["Tools"]
["Terminal"]
["Mutual Funds"]
[]
["Home"]
["Performance Tracker"]
["Top Ranked Funds"]
["ETFs"]
["NFO"]
["Learn"]
["Evaluate"]
["Track"]
["Tools"]
["SEBI Re-categorisation"]
["Tax Saving FY19"]
["Commodities"]
["Insurance"]
[]
["Video"]
[]
["Managing Money with Moneycontrol"]
["The Udayan Show"]
["Ideas for Profit"]
["Markets@moneycontrol"]
["Commodities@Moneycontrol"]
["Podcast"]
[]
["Digging Deeper with Moneycontrol"]
["Stock Picks of the Day"]
["Editor's Story of the Day"]
["A Morning Walk Down Dalal Street"]
["An Evening Walk Down Dalal Street"]
["Personal Finance"]
[]
["Home"]
["Investing"]
["Insurance"]
["Banking"]
["Financial Planning"]
["Property"]
["Tools"]
["Video"]
["Ask Expert"]
["Explainer"]
["Portfolio"]
["Forum"]
["Be a Pro "]
[]
[]
["Home"]
["Stock Reports"]
["Ambareesh Balega"]
["CK Narayan"]
["Mitessh Thakkar"]
["Sudarshan Sukhani"]
["T Gnanasekar"]
["Mecklai Financial"]
["Power Your Trade"]
["Investment Watch"]
["Live TV"]
["Hindi"]
["Gujarati"]
["All Stocks"]
["App"]
["Subscriptions"]
["Specials"]
["Feedback"]
["Close Ad"]
["Verify your Moneycontrol account. Please verify your Email ID and Mobile Number today. Verify Now"]
[]
[]
[]
["A Quick View"]
["Stocks in news"]
["Stocks you last visited"]
["Watchlist"]
["Portfolio"]
["Customize Stack 1 Customize Stack 2 Customize Stack 3 Customize Stack 4"]
[]
["Customize"]
["Customize Stacks"]
["Customize Ticker"]
["Detach"]
["Recommendations"]
["1+1=11.Multiply your wealth now with multibaggers from poweryourtrade.com Subscribe Now"]
[]
["Power Your Trade"]
[]
["Quick View"]
["Customize Stacks Customize Ticker Detach Help Feedback"]
["Stocks in News"]
["Stocks Last Visited"]
["Watchlist"]
["Portfolio"]
["SENSEX NIFTY "]
[]
[]
[]
[]
["YOU ARE HERE > MONEYCONTROL > MARKETS > Refineries > Balance Sheet - Reliance Industries"]
["Reliance Industries"]
["BSE: 500325|NSE: RELIANCE|ISIN: INE002A01018|SECTOR: Refineries"]
["SET ALERT"]
["| "]
[]
["ADD TO PORTFOLIO | "]
["WATCHLIST "]
["LIVE"]
["BSE"]
["Apr 18, 16:00"]
[1382.9]
["37.6 (2.79%)"]
["VOLUME 923,643"]
["LIVE"]
["NSE"]
["Apr 18, 15:59"]
[1385.95]
["42.2 (3.14%)"]
["VOLUME 17,960,482"]
[]
["Quote"]
["CHARTS"]
["NEWS"]
["All News"]
["Business"]
["Earnings"]
["Management Interviews"]
["Stock Advice"]
["Research Reports"]
["Sector"]
["COMMENTS"]
["ANNOUNCEMENTS"]
["CORPORATE ACTION"]
["Board Meetings"]
["AGM/EGM"]
["Dividends"]
["Bonus"]
["Rights"]
["Splits"]
["FINANCIALS"]
["Balance Sheet"]
["Profit & Loss"]
["Quarterly Results"]
["Half Yearly Results"]
["Nine Monthly Results"]
["Yearly Results"]
["Cash Flow"]
["Ratios"]
["Capital Structure"]
["Financial Graphs"]
["ANNUAL REPORT"]
["Directors Report"]
["Chairman's Speech"]
["Auditors Report"]
["Notes To Accounts"]
["Accounting Policy"]
["Finished Products"]
["Raw Materials"]
["Investment Structure"]
["SHAREHOLDING"]
["Shareholding Pattern"]
["Mutual Funds Holding"]
["Top Public Shareholders"]
["Promoter Holding"]
["Bulk Deals"]
["Large Deals"]
["PEERS"]
["Competition"]
["Data Bank new"]
["Latest Price"]
["Stock Performance"]
["Market Cap"]
["Net Sales"]
["Net Profit"]
["Total Assets"]
["Fund managers holdings"]
["COMPANY INFO"]
["Management"]
["History"]
["Background"]
["Listing"]
["Location"]
["ALERTS"]
["Widgets"]
["BROKER"]
["RESEARCH "]
[]
["Track Reliance on the go with the moneycontrol app"]
["Result In"]
["new Format"]
["Result In"]
["Old Format"]
["Download Annual Report PDF Format 2017 | 2016 | 2015 | 2014 | 2013 | 2012 | 2011 | 2010 "]
["Standalone"]
["Consolidated"]
[]
["Print/Copy to Excel : "]
[]
["Previous Years »"]
["Balance Sheet of Reliance Industries","------------------- in Rs. Cr. -------------------"]
[null,"Mar '18","Mar '17","Mar '16","Mar '15","Mar '14"]
[]
[null,"12 mths","12 mths","12 mths","12 mths","12 mths"]
[]
["Sources Of Funds"]
["Total Share Capital",6335,3251,3240,3236,3232]
["Equity Share Capital",6335,3251,3240,3236,3232]
["Share Application Money",15,4,8,17,17]
["Reserves",308297,285058,236936,212923,193842]
["Networth",314647,288313,240184,216176,197091]
["Secured Loans",2153,10461,4524,2036,10744]
["Unsecured Loans",94682,90842,87832,87105,74737]
["Total Debt",96835,101303,92356,89141,85481]
["Total Liabilities",411482,389616,332540,305317,282572]
[null,"Mar '18","Mar '17","Mar '16","Mar '15","Mar '14"]
[]
[null,"12 mths","12 mths","12 mths","12 mths","12 mths"]
[]
["Application Of Funds"]
["Gross Block",313666,259724,229250,205638,194542]
["Less: Accum. Depreciation",112702,105146,97840,91075,85136]
["Net Block",200964,154578,131410,114563,109406]
["Capital Work in Progress",99483,132741,0,75753,41716]
["Investments",225222,192450,152059,112573,86062]
["Inventories",39568,34018,28034,36551,42932]
["Sundry Debtors",10460,5472,3495,4661,10664]
["Cash and Bank Balance",2731,1754,6892,11571,36624]
["Total Current Assets",52759,41244,38421,52783,90220]
["Loans and Advances",39097,25733,28951,42113,40179]
["Total CA, Loans & Advances",91856,66977,67372,94896,130399]
["Current Liabilities",202920,153744,122521,86210,80844]
["Provisions",3123,3386,2659,6258,4167]
["Total CL & Provisions",206043,157130,125180,92468,85011]
["Net Current Assets",-114187,-90153,-57808,2428,45388]
["Total Assets",411482,389616,225661,305317,282572]
[]
["Contingent Liabilities",66970,73386,79905,80641,75955]
["Book Value (Rs)",496.68,886.76,741.2,668.05,609.78]
[]
[]
[]
["Source : Dion Global Solutions Limited"]
[]
["Results of Reliance"]
["News"]
["Results"]
["Estimates"]
["Analysis"]
["19.04.2019"]
["Reliance to start gas production from R-Cluster in 2nd half of FY21"]
["19.04.2019"]
["Accumulate Reliance Industries; target of Rs 1406: Prabhudas Lilladher"]
["18.04.2019"]
["Here is what analysts have to say on RIL Q4 FY19 earnings"]
["18.04.2019"]
["Reliance Industries Q4FY19 â€“ Consumer business takes up the baton"]
["More »"]
["18.04.2019"]
["RIL Q4 profit up 9.8% at Rs 10,362 crore; Jio FY19 profit jumps 300% to Rs 2,964 crore"]
["More »"]
["18.04.2019"]
["RIL Q4 preview: Retail, Jio to drive consolidated PAT, refining segment expected to drag"]
["12.04.2019"]
["Reliance Industries Q4 PAT may dip 2.5% YoY to Rs. 8,478.5 cr: Prabhudas Lilladher"]
["10.04.2019"]
["Reliance industries (Consolidated) Q4 PAT seen up 10% YoY to Rs. 10,338 cr: Kotak"]
["10.04.2019"]
["Reliance industries (Standalone) Q4 PAT may dip 1% YoY to Rs. 8,616 cr: Kotak"]
["More »"]
["No news."]
["Results of Refineries Sector"]
["News"]
["Results"]
["Estimates"]
["Analysis"]
["No news."]
["No news."]
["No news."]
["No news."]
["Quick Links for relianceindustries"]
["News","Corporate Action","Information","Financials","Annual Report","Peer Comparison"]
["Business","Board Meetings","Company History","Balance Sheet","Directors Report","Competition"]
["Earnings","AGM/EGM","Listing Info","Profit & Loss","Chairman's Speech","Price"]
["Mgmt Interviews ","Bonus","Locations","Quarterly Results","Auditors Report","Price Performance"]
["Announcements","Rights","Bulk Deals","Half Yearly Results","Notes to Accounts","Market Cap"]
["Stock Views","Splits","Large Deals","Nine Monthly Results","Finished Goods","Net Sales"]
["Brokerage Reports","Dividends","Shareholding","Yearly Results","Raw Materials","Net Profit"]
["Sector",null,"MF Holding","Cash Flow","Background","Total Assets"]
[null,null,"Top Shareholders","Ratios","Board of Directors","Historical Prices"]
[null,null,"Promoter Holding",null,"Capital Structure","Price of Reliance on previous budgets"]
["Related Searches relianceindustries Stock Price, Reliance Stock Quote, Reliance Results , Reliance News .. More »"]
["Follow moneycontrol"]
["Facebook Twitter RSS Wap SMS SMS Alert iPad iPhone Blackberry OVI AndroidWindow"]
["Explore Moneycontrol"]
["Stocks     A | B | C | D | E | F | G | H | I | J | K | L | M | N | O | P | Q | R | S | T | U | V | W | X | Y | Z | Others"]
["Mutual Funds     A | B | C | D | E | F | G | H | I | J | K | L | M | N | O | P | Q | R | S | T | U | V | W | X | Y | Z"]
["Live Sensex | Public Sector Banks | Market Statistics | Plan Insurance | Global Market | Business News | Mutual Fund | Best Portfolio Manager | Bse Sensex | Nse Nifty | Commodities Price | Silver Price/Rate in India | Gold Price/Rate in India | Crude Oil | USD to INR | Bank Fixed Deposits | Company Fixed Deposits | Small Savings Schemes | Bonds | Budget 2019 | Tax Calculator | RBI Credit Policy | News Archive | FAQs | Financial Glossary | Message Board | Moneybhai | Think India | History India | Latest News | IBNLive News | News in Hindi | Cricket News | Online Study Material | India News |Restaurants in Pune | Online Shopping in India  | Cairn India | Euro | Infosys | Inflation | Silver | Glenmark Pharmaceuticals | Snapdeal | Starbucks | Narendra Modi | Crore | Clear Study Doubts | Education Franchisee Opportunity | Rss Feeds"]
["Site Map | About Us | Contact Us | Advertise | Bookmark | Disclaimer | Privacy Policy | Terms & Conditions | Careers"]
["Copyright © e-Eighteen.com Ltd. All rights reserved. Reproduction of news articles, photos, videos or any other content in whole or in part in any form or medium without express written permission of moneycontrol.com is prohibited."]

{"sheet":"relianceindustries PL","index":13,"n_rows":478,"n_cols":6,"rows_kept":478,"cut":false,"hidden":false,"merged":[]}
["English"]
["Hindi"]
["Gujarati"]
[]
["App"]
[]
["Subscription"]
["Specials"]
[]
[]
[]
[]
[]
[]
[]
[]
[]
[]
[]
["Quotes "]
["NAVs"]
["Commodities "]
["Futures & Options "]
["News "]
["Forum "]
["Notices "]
["Videos "]
["Glossary "]
["All "]
[]
["Stocks"]
["Feedback"]
["Log In"]
[]
["My Profile (Unverified)"]
["My Portfolio"]
["My Watchlist"]
["My Messages"]
["My Alerts"]
[]
["Sign Up"]
["Logout"]
[]
[]
[]
[]
[]
[]
[]
["Get App"]
["Log In"]
["Sign Up"]
["My Portfolio"]
["My Watchlist"]
["My Messages"]
["Sign out"]
[]
["Quotes "]
["NAVs"]
["Commodities "]
["Futures & Options "]
["News "]
["Forum "]
["Notices "]
["Videos "]
["Glossary "]
["All "]
["Auriferous Aqua Farma , 519363"]
["View All "]
["Select Language"]
["English"]
["à¤¹à¤¿à¤‚à¤¦à¥€"]
["à¤—à¥\u0081à¤œà¤°à¤¾à¤¤à¥€"]
["Home"]
["Lok Sabha Election 2019 "]
[]
["Stock Premier League "]
[]
["News"]
["Markets"]
["Portfolio"]
["Watchlist"]
["Forum"]
["Indian Indices"]
["Global Indices"]
["MoneySavers"]
["Live TV & Shows"]
["Video "]
[]
["Commodities"]
["Currencies"]
["Mutual Funds"]
["Personal Finance"]
["Podcast "]
[]
["Cryptocurrency"]
["Subscription"]
["Specials"]
["Invest Now"]
["Master Your Money"]
["SME Special"]
["Real Assets"]
["Travel Cafe"]
["Tech Control"]
["Home"]
[]
["Companies"]
["Economy"]
["Property"]
["Politics"]
["Auto"]
["Cricket"]
["World"]
["Announcements"]
["News"]
[]
["Business"]
["Markets"]
["Stocks"]
["Economy"]
["Research"]
["Mutual Funds"]
["Personal Finance"]
["Property"]
["Auto"]
["IPO"]
["Politics"]
["India"]
["World"]
["BFSI Tech "]
[]
["Consumer Tech"]
["Startups"]
["Opinion "]
[]
["Lok Sabha Election 2019"]
[]
["Home"]
["Opinion"]
["Videos"]
["Photos"]
["Podcasts"]
["Modinomics Review"]
["Millennial News"]
["Election Dates"]
["Lok Sabha News"]
["Assembly Election 2019"]
["Markets"]
[]
["Home"]
["Pre-Market"]
["Advice"]
["Technicals"]
["F&O"]
["Earnings"]
["IPO"]
["All Stats"]
["Indian Indices "]
[]
["Global Markets"]
["Currencies"]
["Crypto"]
["Bonds"]
["Broker Research"]
["Tools"]
["Terminal"]
["Mutual Funds"]
[]
["Home"]
["Performance Tracker"]
["Top Ranked Funds"]
["ETFs"]
["NFO"]
["Learn"]
["Evaluate"]
["Track"]
["Tools"]
["SEBI Re-categorisation"]
["Tax Saving FY19"]
["Commodities"]
["Insurance"]
[]
["Video"]
[]
["Managing Money with Moneycontrol"]
["The Udayan Show"]
["Ideas for Profit"]
["Markets@moneycontrol"]
["Commodities@Moneycontrol"]
["Podcast"]
[]
["Digging Deeper with Moneycontrol"]
["Stock Picks of the Day"]
["Editor's Story of the Day"]
["A Morning Walk Down Dalal Street"]
["An Evening Walk Down Dalal Street"]
["Personal Finance"]
[]
["Home"]
["Investing"]
["Insurance"]
["Banking"]
["Financial Planning"]
["Property"]
["Tools"]
["Video"]
["Ask Expert"]
["Explainer"]
["Portfolio"]
["Forum"]
["Be a Pro "]
[]
[]
["Home"]
["Stock Reports"]
["Ambareesh Balega"]
["CK Narayan"]
["Mitessh Thakkar"]
["Sudarshan Sukhani"]
["T Gnanasekar"]
["Mecklai Financial"]
["Power Your Trade"]
["Investment Watch"]
["Live TV"]
["Hindi"]
["Gujarati"]
["All Stocks"]
["App"]
["Subscriptions"]
["Specials"]
["Feedback"]
["Close Ad"]
["Verify your Moneycontrol account. Please verify your Email ID and Mobile Number today. Verify Now"]
[]
[]
[]
["A Quick View"]
["Stocks in news"]
["Stocks you last visited"]
["Watchlist"]
["Portfolio"]
["Customize Stack 1 Customize Stack 2 Customize Stack 3 Customize Stack 4"]
[]
["Customize"]
["Customize Stacks"]
["Customize Ticker"]
["Detach"]
["Recommendations"]
["1+1=11.Multiply your wealth now with multibaggers from poweryourtrade.com Subscribe Now"]
[]
["Power Your Trade"]
[]
["Quick View"]
["Customize Stacks Customize Ticker Detach Help Feedback"]
["Stocks in News"]
["Stocks Last Visited"]
["Watchlist"]
["Portfolio"]
["SENSEX NIFTY "]
[]
[]
[]
[]
["YOU ARE HERE > MONEYCONTROL > MARKETS > Refineries > Profit & Loss account - Reliance Industries"]
["Reliance Industries"]
["BSE: 500325|NSE: RELIANCE|ISIN: INE002A01018|SECTOR: Refineries"]
["SET ALERT"]
["| "]
[]
["ADD TO PORTFOLIO | "]
["WATCHLIST "]
["LIVE"]
["BSE"]
["Apr 18, 16:00"]
[1382.9]
["37.6 (2.79%)"]
["VOLUME 923,643"]
["LIVE"]
["NSE"]
["Apr 18, 15:59"]
[1385.95]
["42.2 (3.14%)"]
["VOLUME 17,960,482"]
[]
["Quote"]
["CHARTS"]
["NEWS"]
["All News"]
["Business"]
["Earnings"]
["Management Interviews"]
["Stock Advice"]
["Research Reports"]
["Sector"]
["COMMENTS"]
["ANNOUNCEMENTS"]
["CORPORATE ACTION"]
["Board Meetings"]
["AGM/EGM"]
["Dividends"]
["Bonus"]
["Rights"]
["Splits"]
["FINANCIALS"]
["Balance Sheet"]
["Profit & Loss"]
["Quarterly Results"]
["Half Yearly Results"]
["Nine Monthly Results"]
["Yearly Results"]
["Cash Flow"]
["Ratios"]
["Capital Structure"]
["Financial Graphs"]
["ANNUAL REPORT"]
["Directors Report"]
["Chairman's Speech"]
["Auditors Report"]
["Notes To Accounts"]
["Accounting Policy"]
["Finished Products"]
["Raw Materials"]
["Investment Structure"]
["SHAREHOLDING"]
["Shareholding Pattern"]
["Mutual Funds Holding"]
["Top Public Shareholders"]
["Promoter Holding"]
["Bulk Deals"]
["Large Deals"]
["PEERS"]
["Competition"]
["Data Bank new"]
["Latest Price"]
["Stock Performance"]
["Market Cap"]
["Net Sales"]
["Net Profit"]
["Total Assets"]
["Fund managers holdings"]
["COMPANY INFO"]
["Management"]
["History"]
["Background"]
["Listing"]
["Location"]
["ALERTS"]
["Widgets"]
["BROKER"]
["RESEARCH "]
[]
["Track Reliance on the go with the moneycontrol app"]
["Result In"]
["new Format"]
["Result In"]
["Old Format"]
["Download Annual Report PDF Format 2017 | 2016 | 2015 | 2014 | 2013 | 2012 | 2011 | 2010 "]
["Standalone"]
["Consolidated"]
[]
["Print/Copy to Excel : "]
[]
["Previous Years »"]
["Profit & Loss account of Reliance Industries","------------------- in Rs. Cr. -------------------"]
[null,"Mar 19",43160,42795,42430,42064]
[]
[null,"12 mths","12 mths","12 mths","12 mths","12 mths"]
[]
["INCOME"]
["Revenue From Operations [Gross]",371019,315357,265041,251241,340814]
["Less: Excise/Sevice Tax/Other Levies",0,25315,23016,18083,11738]
["Revenue From Operations [Net]",371019,290042,242025,233158,329076]
["Total Operating Revenues",371019,290042,242025,233158,329076]
["Other Income",9419,8220,8709,7582,8721]
["Total Revenue",380438,298262,250734,240740,337797]
["EXPENSES"]
["Cost Of Materials Consumed",265288,198029,164250,152769,255998]
["Purchase Of Stock-In Trade",8289,7268,5161,4241,7134]
["Operating And Direct Expenses",0,0,0,17328,19693]
["Changes In Inventories Of FG,WIP And Stock-In Trade",-3294,-3232,-4839,4171,1943]
["Employee Benefit Expenses",5834,4740,4434,4260,3686]
["Finance Costs",9751,4656,2723,2454,2367]
["Depreciation And Amortisation Expenses",10558,9580,8465,9566,8488]
["Other Expenses",36645,31496,29763,12757,10593]
["Less: Transfer to / From Investment / Fixed Assets / Others",0,0,0,2507,1573]
["Total Expenses",333071,252537,209957,205039,308329]
[null,43525,43160,42795,42430,42064]
[]
[null,"12 mths","12 mths","12 mths","12 mths","12 mths"]
[]
["Profit/Loss Before Exceptional, ExtraOrdinary Items And Tax",47367,45725,40777,35701,29468]
["Profit/Loss Before Tax",47367,45725,40777,35701,29468]
["Tax Expenses-Continued Operations"]
["Current Tax",12204,8953,8333,7802,6124]
["Deferred Tax",0,3160,1019,482,625]
["Total Tax Expenses",12204,12113,9352,8284,6749]
["Profit/Loss After Tax And Before ExtraOrdinary Items",35163,33612,31425,27417,22719]
["Profit/Loss From Continuing Operations",35163,33612,31425,27417,22719]
["Profit/Loss For The Period",35163,33612,31425,27417,22719]
[null,43525,43160,42795,42430,42064]
[]
[null,"12 mths","12 mths","12 mths","12 mths","12 mths"]
[]
["OTHER ADDITIONAL INFORMATION"]
["EARNINGS PER SHARE"]
["Basic EPS (Rs.)",0,53.08,96.9,84.66,70.25]
["Diluted EPS (Rs.)",55.47,53.04,96.73,84.66,70.25]
["VALUE OF IMPORTED AND INDIGENIOUS RAW MATERIALS"]
["Imported Raw Materials",0,0,0,140109,232867]
["Indigenous Raw Materials",0,0,0,12660,23131]
["STORES, SPARES AND LOOSE TOOLS"]
["Imported Stores And Spares",0,0,0,1810,2176]
["Indigenous Stores And Spares",0,0,0,2955,2526]
["DIVIDEND AND DIVIDEND PERCENTAGE"]
["Equity Share Dividend",0,3255,0,3095,2944]
["Tax On Dividend",0,661,0,605,615]
["Equity Dividend Rate (%)",0,60,110,105,100]
[]
[]
[]
["Source : Dion Global Solutions Limited"]
[]
["Results of Reliance"]
["News"]
["Results"]
["Estimates"]
["Analysis"]
["19.04.2019"]
["Reliance to start gas production from R-Cluster in 2nd half of FY21"]
["19.04.2019"]
["Accumulate Reliance Industries; target of Rs 1406: Prabhudas Lilladher"]
["18.04.2019"]
["Here is what analysts have to say on RIL Q4 FY19 earnings"]
["18.04.2019"]
["Reliance Industries Q4FY19 â€“ Consumer business takes up the baton"]
["More »"]
["18.04.2019"]
["RIL Q4 profit up 9.8% at Rs 10,362 crore; Jio FY19 profit jumps 300% to Rs 2,964 crore"]
["More »"]
["18.04.2019"]
["RIL Q4 preview: Retail, Jio to drive consolidated PAT, refining segment expected to drag"]
["12.04.2019"]
["Reliance Industries Q4 PAT may dip 2.5% YoY to Rs. 8,478.5 cr: Prabhudas Lilladher"]
["10.04.2019"]
["Reliance industries (Consolidated) Q4 PAT seen up 10% YoY to Rs. 10,338 cr: Kotak"]
["10.04.2019"]
["Reliance industries (Standalone) Q4 PAT may dip 1% YoY to Rs. 8,616 cr: Kotak"]
["More »"]
["No news."]
["Results of Refineries Sector"]
["News"]
["Results"]
["Estimates"]
["Analysis"]
["No news."]
["No news."]
["No news."]
["No news."]
["Quick Links for relianceindustries"]
["News","Corporate Action","Information","Financials","Annual Report","Peer Comparison"]
["Business","Board Meetings","Company History","Balance Sheet","Directors Report","Competition"]
["Earnings","AGM/EGM","Listing Info","Profit & Loss","Chairman's Speech","Price"]
["Mgmt Interviews ","Bonus","Locations","Quarterly Results","Auditors Report","Price Performance"]
["Announcements","Rights","Bulk Deals","Half Yearly Results","Notes to Accounts","Market Cap"]
["Stock Views","Splits","Large Deals","Nine Monthly Results","Finished Goods","Net Sales"]
["Brokerage Reports","Dividends","Shareholding","Yearly Results","Raw Materials","Net Profit"]
["Sector",null,"MF Holding","Cash Flow","Background","Total Assets"]
[null,null,"Top Shareholders","Ratios","Board of Directors","Historical Prices"]
[null,null,"Promoter Holding",null,"Capital Structure","Price of Reliance on previous budgets"]
["Related Searches relianceindustries Stock Price, Reliance Stock Quote, Reliance Results , Reliance News .. More »"]
["Follow moneycontrol"]
["Facebook Twitter RSS Wap SMS SMS Alert iPad iPhone Blackberry OVI AndroidWindow"]
["Explore Moneycontrol"]
["Stocks     A | B | C | D | E | F | G | H | I | J | K | L | M | N | O | P | Q | R | S | T | U | V | W | X | Y | Z | Others"]
["Mutual Funds     A | B | C | D | E | F | G | H | I | J | K | L | M | N | O | P | Q | R | S | T | U | V | W | X | Y | Z"]
["Live Sensex | Public Sector Banks | Market Statistics | Plan Insurance | Global Market | Business News | Mutual Fund | Best Portfolio Manager | Bse Sensex | Nse Nifty | Commodities Price | Silver Price/Rate in India | Gold Price/Rate in India | Crude Oil | USD to INR | Bank Fixed Deposits | Company Fixed Deposits | Small Savings Schemes | Bonds | Budget 2019 | Tax Calculator | RBI Credit Policy | News Archive | FAQs | Financial Glossary | Message Board | Moneybhai | Think India | History India | Latest News | IBNLive News | News in Hindi | Cricket News | Online Study Material | India News |Restaurants in Bangalore | Online Shopping in India  | Cairn India | Euro | Infosys | Inflation | Silver | Glenmark Pharmaceuticals | Snapdeal | Starbucks | Narendra Modi | Crore | Clear Study Doubts | Education Franchisee Opportunity | Rss Feeds"]
["Site Map | About Us | Contact Us | Advertise | Bookmark | Disclaimer | Privacy Policy | Terms & Conditions | Careers"]
["Copyright © e-Eighteen.com Ltd. All rights reserved. Reproduction of news articles, photos, videos or any other content in whole or in part in any form or medium without express written permission of moneycontrol.com is prohibited."]

{"sheet":"relianceindustries Ratios","index":14,"n_rows":482,"n_cols":6,"rows_kept":482,"cut":false,"hidden":false,"merged":[]}
["English"]
["Hindi"]
["Gujarati"]
[]
["App"]
[]
["Subscription"]
["Specials"]
[]
[]
[]
[]
[]
[]
[]
[]
[]
[]
[]
["Quotes "]
["NAVs"]
["Commodities "]
["Futures & Options "]
["News "]
["Forum "]
["Notices "]
["Videos "]
["Glossary "]
["All "]
[]
["Stocks"]
["Feedback"]
["Log In"]
[]
["My Profile (Unverified)"]
["My Portfolio"]
["My Watchlist"]
["My Messages"]
["My Alerts"]
[]
["Sign Up"]
["Logout"]
[]
[]
[]
[]
[]
[]
[]
["Get App"]
["Log In"]
["Sign Up"]
["My Portfolio"]
["My Watchlist"]
["My Messages"]
["Sign out"]
[]
["Quotes "]
["NAVs"]
["Commodities "]
["Futures & Options "]
["News "]
["Forum "]
["Notices "]
["Videos "]
["Glossary "]
["All "]
["Auriferous Aqua Farma , 519363"]
["View All "]
["Select Language"]
["English"]
["à¤¹à¤¿à¤‚à¤¦à¥€"]
["à¤—à¥\u0081à¤œà¤°à¤¾à¤¤à¥€"]
["Home"]
["Lok Sabha Election 2019 "]
[]
["Stock Premier League "]
[]
["News"]
["Markets"]
["Portfolio"]
["Watchlist"]
["Forum"]
["Indian Indices"]
["Global Indices"]
["MoneySavers"]
["Live TV & Shows"]
["Video "]
[]
["Commodities"]
["Currencies"]
["Mutual Funds"]
["Personal Finance"]
["Podcast "]
[]
["Cryptocurrency"]
["Subscription"]
["Specials"]
["Invest Now"]
["Master Your Money"]
["SME Special"]
["Real Assets"]
["Travel Cafe"]
["Tech Control"]
["Home"]
[]
["Companies"]
["Economy"]
["Property"]
["Politics"]
["Auto"]
["Cricket"]
["World"]
["Announcements"]
["News"]
[]
["Business"]
["Markets"]
["Stocks"]
["Economy"]
["Research"]
["Mutual Funds"]
["Personal Finance"]
["Property"]
["Auto"]
["IPO"]
["Politics"]
["India"]
["World"]
["BFSI Tech "]
[]
["Consumer Tech"]
["Startups"]
["Opinion "]
[]
["Lok Sabha Election 2019"]
[]
["Home"]
["Opinion"]
["Videos"]
["Photos"]
["Podcasts"]
["Modinomics Review"]
["Millennial News"]
["Election Dates"]
["Lok Sabha News"]
["Assembly Election 2019"]
["Markets"]
[]
["Home"]
["Pre-Market"]
["Advice"]
["Technicals"]
["F&O"]
["Earnings"]
["IPO"]
["All Stats"]
["Indian Indices "]
[]
["Global Markets"]
["Currencies"]
["Crypto"]
["Bonds"]
["Broker Research"]
["Tools"]
["Terminal"]
["Mutual Funds"]
[]
["Home"]
["Performance Tracker"]
["Top Ranked Funds"]
["ETFs"]
["NFO"]
["Learn"]
["Evaluate"]
["Track"]
["Tools"]
["SEBI Re-categorisation"]
["Tax Saving FY19"]
["Commodities"]
["Insurance"]
[]
["Video"]
[]
["Managing Money with Moneycontrol"]
["The Udayan Show"]
["Ideas for Profit"]
["Markets@moneycontrol"]
["Commodities@Moneycontrol"]
["Podcast"]
[]
["Digging Deeper with Moneycontrol"]
["Stock Picks of the Day"]
["Editor's Story of the Day"]
["A Morning Walk Down Dalal Street"]
["An Evening Walk Down Dalal Street"]
["Personal Finance"]
[]
["Home"]
["Investing"]
["Insurance"]
["Banking"]
["Financial Planning"]
["Property"]
["Tools"]
["Video"]
["Ask Expert"]
["Explainer"]
["Portfolio"]
["Forum"]
["Be a Pro "]
[]
[]
["Home"]
["Stock Reports"]
["Ambareesh Balega"]
["CK Narayan"]
["Mitessh Thakkar"]
["Sudarshan Sukhani"]
["T Gnanasekar"]
["Mecklai Financial"]
["Power Your Trade"]
["Investment Watch"]
["Live TV"]
["Hindi"]
["Gujarati"]
["All Stocks"]
["App"]
["Subscriptions"]
["Specials"]
["Feedback"]
["Close Ad"]
["Verify your Moneycontrol account. Please verify your Email ID and Mobile Number today. Verify Now"]
[]
[]
[]
["A Quick View"]
["Stocks in news"]
["Stocks you last visited"]
["Watchlist"]
["Portfolio"]
["Customize Stack 1 Customize Stack 2 Customize Stack 3 Customize Stack 4"]
[]
["Customize"]
["Customize Stacks"]
["Customize Ticker"]
["Detach"]
["Recommendations"]
["1+1=11.Multiply your wealth now with multibaggers from poweryourtrade.com Subscribe Now"]
[]
["Power Your Trade"]
[]
["Quick View"]
["Customize Stacks Customize Ticker Detach Help Feedback"]
["Stocks in News"]
["Stocks Last Visited"]
["Watchlist"]
["Portfolio"]
["SENSEX NIFTY "]
[]
[]
[]
[]
["YOU ARE HERE > MONEYCONTROL > MARKETS > Refineries > Key Financial Ratios - Reliance Industries"]
["Reliance Industries"]
["BSE: 500325|NSE: RELIANCE|ISIN: INE002A01018|SECTOR: Refineries"]
["SET ALERT"]
["| "]
[]
["ADD TO PORTFOLIO | "]
["WATCHLIST "]
["LIVE"]
["BSE"]
["Apr 18, 16:00"]
[1382.9]
["37.6 (2.79%)"]
["VOLUME 923,643"]
["LIVE"]
["NSE"]
["Apr 18, 15:59"]
[1385.95]
["42.2 (3.14%)"]
["VOLUME 17,960,482"]
[]
["Quote"]
["CHARTS"]
["NEWS"]
["All News"]
["Business"]
["Earnings"]
["Management Interviews"]
["Stock Advice"]
["Research Reports"]
["Sector"]
["COMMENTS"]
["ANNOUNCEMENTS"]
["CORPORATE ACTION"]
["Board Meetings"]
["AGM/EGM"]
["Dividends"]
["Bonus"]
["Rights"]
["Splits"]
["FINANCIALS"]
["Balance Sheet"]
["Profit & Loss"]
["Quarterly Results"]
["Half Yearly Results"]
["Nine Monthly Results"]
["Yearly Results"]
["Cash Flow"]
["Ratios"]
["Capital Structure"]
["Financial Graphs"]
["ANNUAL REPORT"]
["Directors Report"]
["Chairman's Speech"]
["Auditors Report"]
["Notes To Accounts"]
["Accounting Policy"]
["Finished Products"]
["Raw Materials"]
["Investment Structure"]
["SHAREHOLDING"]
["Shareholding Pattern"]
["Mutual Funds Holding"]
["Top Public Shareholders"]
["Promoter Holding"]
["Bulk Deals"]
["Large Deals"]
["PEERS"]
["Competition"]
["Data Bank new"]
["Latest Price"]
["Stock Performance"]
["Market Cap"]
["Net Sales"]
["Net Profit"]
["Total Assets"]
["Fund managers holdings"]
["COMPANY INFO"]
["Management"]
["History"]
["Background"]
["Listing"]
["Location"]
["ALERTS"]
["Widgets"]
["BROKER"]
["RESEARCH "]
[]
["Track Reliance on the go with the moneycontrol app"]
["Result In"]
["new Format"]
["Result In"]
["Old Format"]
["Download Annual Report PDF Format 2017 | 2016 | 2015 | 2014 | 2013 | 2012 | 2011 | 2010 "]
["Standalone"]
["Consolidated"]
[]
["Print/Copy to Excel : "]
[]
["Previous Years »"]
["Key Financial Ratios of Reliance Industries"]
[]
[]
[null,"Mar '18","Mar '17","Mar '16","Mar '15","Mar '14"]
[]
["Investment Valuation Ratios"]
["Face Value",10,10,10,10,10]
["Dividend Per Share",6,11,10.5,10,9.5]
["Operating Profit Per Share (Rs)",81.680000000000007,133.04,123.87,97.67,95.54]
["Net Operating Profit Per Share (Rs)",457.87,744.4,719.54,1017.02,1207.08]
["Free Reserves Per Share (Rs)","--","--","--","--","--"]
["Bonus in Equity Capital",81.900000000000006,64.849999999999994,65.069999999999993,65.150000000000006,65.239999999999995]
["Profitability Ratios"]
["Operating Profit Margin(%)",17.829999999999998,17.87,17.21,9.6,7.91]
["Profit Before Interest And Tax Margin(%)",14.13,13.87,12.69,6.84,5.53]
["Gross Profit Margin(%)",14.53,14.37,13.11,7.02,5.66]
["Cash Profit Margin(%)",14.48,15.9,15.36,9.23,7.71]
["Adjusted Cash Margin(%)",14.48,15.9,15.36,9.23,7.71]
["Net Profit Margin(%)",11.58,12.98,11.75,6.9,5.63]
["Adjusted Net Profit Margin(%)",11.26,12.53,11.38,6.72,5.5]
["Return On Capital Employed(%)",12.24,11.16,11.47,10.42,10.97]
["Return On Net Worth(%)",10.68,10.89,11.41,10.51,11.15]
["Adjusted Return on Net Worth(%)",10.68,10.89,11.41,10.51,11.15]
["Return on Assets Excluding Revaluations",496.68,886.76,741.2,668.05,609.78]
["Return on Assets Including Revaluations",496.68,886.76,741.2,668.05,609.78]
["Return on Long Term Funds(%)",12.71,11.85,11.99,10.88,11.94]
["Liquidity And Solvency Ratios"]
["Current Ratio",0.41,0.35,0.47,0.89,1.1100000000000001]
["Quick Ratio",0.25,0.21,0.31,0.63,1.03]
["Debt Equity Ratio",0.31,0.35,0.38,0.41,0.43]
["Long Term Debt Equity Ratio",0.26,0.27,0.32,0.35,0.32]
["Debt Coverage Ratios"]
["Interest Cover",10.82,15.98,15.55,13.45,9.68]
["Total Debt to Owners Fund",0.31,0.35,0.38,0.41,0.43]
["Financial Charges Coverage Ratio",12.88,19.079999999999998,19.45,17.04,12.42]
["Financial Charges Coverage Ratio Post Tax",10.28,15.65,16.07,14.18,10.6]
["Management Efficiency Ratios"]
["Inventory Turnover Ratio",7.97,7.79,8.9600000000000009,9.32,9.35]
["Debtors Turnover Ratio",36.409999999999997,53.98,57.17,42.95,34.61]
["Investments Turnover Ratio",7.97,7.79,8.9600000000000009,9.32,9.35]
["Fixed Assets Turnover Ratio",0.95,0.97,1.23,1.93,2.36]
["Total Assets Turnover Ratio",0.72,0.64,1.26,1.22,1.54]
["Asset Turnover Ratio",0.72,0.67,0.73,1.1200000000000001,1.51]
[]
["Average Raw Material Holding","--","--","--","--","--"]
["Average Finished Goods Held","--","--","--","--","--"]
["Number of Days In Working Capital",-131.04,-114.28,-71.099999999999994,16.13,53.44]
["Profit & Loss Account Ratios"]
["Material Cost Composition",72.63,72.069999999999993,69.38,81.38,85.68]
["Imported Composition of Raw Materials Consumed","--","--",91.71,90.96,89.68]
["Selling Distribution Cost Composition","--","--",3.54,"--","--"]
["Expenses as Composition of Total Sales",58.53,"--",59.11,63.63,66.989999999999995]
["Cash Flow Indicator Ratios"]
["Dividend Payout Ratio Net Profit",9.68,"--",11.28,12.95,12.7]
["Dividend Payout Ratio Cash Profit",7.53,"--",8.36,9.43,9.07]
["Earning Retention Ratio",90.32,100,88.72,87.05,87.3]
["Cash Earning Retention Ratio",92.47,100,91.64,90.57,90.93]
["AdjustedCash Flow Times",2.2400000000000002,2.54,2.5,2.86,2.78]
[]
[]
[]
["Source : Dion Global Solutions Limited"]
[]
["Results of Reliance"]
["News"]
["Results"]
["Estimates"]
["Analysis"]
["19.04.2019"]
["Reliance to start gas production from R-Cluster in 2nd half of FY21"]
["19.04.2019"]
["Accumulate Reliance Industries; target of Rs 1406: Prabhudas Lilladher"]
["18.04.2019"]
["Here is what analysts have to say on RIL Q4 FY19 earnings"]
["18.04.2019"]
["Reliance Industries Q4FY19 â€“ Consumer business takes up the baton"]
["More »"]
["18.04.2019"]
["RIL Q4 profit up 9.8% at Rs 10,362 crore; Jio FY19 profit jumps 300% to Rs 2,964 crore"]
["More »"]
["18.04.2019"]
["RIL Q4 preview: Retail, Jio to drive consolidated PAT, refining segment expected to drag"]
["12.04.2019"]
["Reliance Industries Q4 PAT may dip 2.5% YoY to Rs. 8,478.5 cr: Prabhudas Lilladher"]
["10.04.2019"]
["Reliance industries (Consolidated) Q4 PAT seen up 10% YoY to Rs. 10,338 cr: Kotak"]
["10.04.2019"]
["Reliance industries (Standalone) Q4 PAT may dip 1% YoY to Rs. 8,616 cr: Kotak"]
["More »"]
["No news."]
["Results of Refineries Sector"]
["News"]
["Results"]
["Estimates"]
["Analysis"]
["No news."]
["No news."]
["No news."]
["No news."]
["Quick Links for relianceindustries"]
["News","Corporate Action","Information","Financials","Annual Report","Peer Comparison"]
["Business","Board Meetings","Company History","Balance Sheet","Directors Report","Competition"]
["Earnings","AGM/EGM","Listing Info","Profit & Loss","Chairman's Speech","Price"]
["Mgmt Interviews ","Bonus","Locations","Quarterly Results","Auditors Report","Price Performance"]
["Announcements","Rights","Bulk Deals","Half Yearly Results","Notes to Accounts","Market Cap"]
["Stock Views","Splits","Large Deals","Nine Monthly Results","Finished Goods","Net Sales"]
["Brokerage Reports","Dividends","Shareholding","Yearly Results","Raw Materials","Net Profit"]
["Sector",null,"MF Holding","Cash Flow","Background","Total Assets"]
[null,null,"Top Shareholders","Ratios","Board of Directors","Historical Prices"]
[null,null,"Promoter Holding",null,"Capital Structure","Price of Reliance on previous budgets"]
["Related Searches relianceindustries Stock Price, Reliance Stock Quote, Reliance Results , Reliance News .. More »"]
["Follow moneycontrol"]
["Facebook Twitter RSS Wap SMS SMS Alert iPad iPhone Blackberry OVI AndroidWindow"]
["Explore Moneycontrol"]
["Stocks     A | B | C | D | E | F | G | H | I | J | K | L | M | N | O | P | Q | R | S | T | U | V | W | X | Y | Z | Others"]
["Mutual Funds     A | B | C | D | E | F | G | H | I | J | K | L | M | N | O | P | Q | R | S | T | U | V | W | X | Y | Z"]
["Live Sensex | Public Sector Banks | Market Statistics | Plan Insurance | Global Market | Business News | Mutual Fund | Best Portfolio Manager | Bse Sensex | Nse Nifty | Commodities Price | Silver Price/Rate in India | Gold Price/Rate in India | Crude Oil | USD to INR | Bank Fixed Deposits | Company Fixed Deposits | Small Savings Schemes | Bonds | Budget 2019 | Tax Calculator | RBI Credit Policy | News Archive | FAQs | Financial Glossary | Message Board | Moneybhai | Think India | History India | Latest News | IBNLive News | News in Hindi | Cricket News | Online Study Material | India News |Restaurants in Chennai | Online Shopping in India  | Cairn India | Euro | Infosys | Inflation | Silver | Glenmark Pharmaceuticals | Snapdeal | Starbucks | Narendra Modi | Crore | Clear Study Doubts | Education Franchisee Opportunity | Rss Feeds"]
["Site Map | About Us | Contact Us | Advertise | Bookmark | Disclaimer | Privacy Policy | Terms & Conditions | Careers"]
["Copyright © e-Eighteen.com Ltd. All rights reserved. Reproduction of news articles, photos, videos or any other content in whole or in part in any form or medium without express written permission of moneycontrol.com is prohibited."]

{"sheet":"relianceindustries CF","index":15,"n_rows":437,"n_cols":6,"rows_kept":437,"cut":false,"hidden":false,"merged":[]}
["English"]
["Hindi"]
["Gujarati"]
[]
["App"]
[]
["Subscription"]
["Specials"]
[]
[]
[]
[]
[]
[]
[]
[]
[]
[]
[]
["Quotes "]
["NAVs"]
["Commodities "]
["Futures & Options "]
["News "]
["Forum "]
["Notices "]
["Videos "]
["Glossary "]
["All "]
[]
["Stocks"]
["Feedback"]
["Log In"]
[]
["My Profile (Unverified)"]
["My Portfolio"]
["My Watchlist"]
["My Messages"]
["My Alerts"]
[]
["Sign Up"]
["Logout"]
[]
[]
[]
[]
[]
[]
[]
["Get App"]
["Log In"]
["Sign Up"]
["My Portfolio"]
["My Watchlist"]
["My Messages"]
["Sign out"]
[]
["Quotes "]
["NAVs"]
["Commodities "]
["Futures & Options "]
["News "]
["Forum "]
["Notices "]
["Videos "]
["Glossary "]
["All "]
["Auriferous Aqua Farma , 519363"]
["View All "]
["Select Language"]
["English"]
["à¤¹à¤¿à¤‚à¤¦à¥€"]
["à¤—à¥\u0081à¤œà¤°à¤¾à¤¤à¥€"]
["Home"]
["Lok Sabha Election 2019 "]
[]
["Stock Premier League "]
[]
["News"]
["Markets"]
["Portfolio"]
["Watchlist"]
["Forum"]
["Indian Indices"]
["Global Indices"]
["MoneySavers"]
["Live TV & Shows"]
["Video "]
[]
["Commodities"]
["Currencies"]
["Mutual Funds"]
["Personal Finance"]
["Podcast "]
[]
["Cryptocurrency"]
["Subscription"]
["Specials"]
["Invest Now"]
["Master Your Money"]
["SME Special"]
["Real Assets"]
["Travel Cafe"]
["Tech Control"]
["Home"]
[]
["Companies"]
["Economy"]
["Property"]
["Politics"]
["Auto"]
["Cricket"]
["World"]
["Announcements"]
["News"]
[]
["Business"]
["Markets"]
["Stocks"]
["Economy"]
["Research"]
["Mutual Funds"]
["Personal Finance"]
["Property"]
["Auto"]
["IPO"]
["Politics"]
["India"]
["World"]
["BFSI Tech "]
[]
["Consumer Tech"]
["Startups"]
["Opinion "]
[]
["Lok Sabha Election 2019"]
[]
["Home"]
["Opinion"]
["Videos"]
["Photos"]
["Podcasts"]
["Modinomics Review"]
["Millennial News"]
["Election Dates"]
["Lok Sabha News"]
["Assembly Election 2019"]
["Markets"]
[]
["Home"]
["Pre-Market"]
["Advice"]
["Technicals"]
["F&O"]
["Earnings"]
["IPO"]
["All Stats"]
["Indian Indices "]
[]
["Global Markets"]
["Currencies"]
["Crypto"]
["Bonds"]
["Broker Research"]
["Tools"]
["Terminal"]
["Mutual Funds"]
[]
["Home"]
["Performance Tracker"]
["Top Ranked Funds"]
["ETFs"]
["NFO"]
["Learn"]
["Evaluate"]
["Track"]
["Tools"]
["SEBI Re-categorisation"]
["Tax Saving FY19"]
["Commodities"]
["Insurance"]
[]
["Video"]
[]
["Managing Money with Moneycontrol"]
["The Udayan Show"]
["Ideas for Profit"]
["Markets@moneycontrol"]
["Commodities@Moneycontrol"]
["Podcast"]
[]
["Digging Deeper with Moneycontrol"]
["Stock Picks of the Day"]
["Editor's Story of the Day"]
["A Morning Walk Down Dalal Street"]
["An Evening Walk Down Dalal Street"]
["Personal Finance"]
[]
["Home"]
["Investing"]
["Insurance"]
["Banking"]
["Financial Planning"]
["Property"]
["Tools"]
["Video"]
["Ask Expert"]
["Explainer"]
["Portfolio"]
["Forum"]
["Be a Pro "]
[]
[]
["Home"]
["Stock Reports"]
["Ambareesh Balega"]
["CK Narayan"]
["Mitessh Thakkar"]
["Sudarshan Sukhani"]
["T Gnanasekar"]
["Mecklai Financial"]
["Power Your Trade"]
["Investment Watch"]
["Live TV"]
["Hindi"]
["Gujarati"]
["All Stocks"]
["App"]
["Subscriptions"]
["Specials"]
["Feedback"]
["Close Ad"]
["Verify your Moneycontrol account. Please verify your Email ID and Mobile Number today. Verify Now"]
[]
[]
[]
["A Quick View"]
["Stocks in news"]
["Stocks you last visited"]
["Watchlist"]
["Portfolio"]
["Customize Stack 1 Customize Stack 2 Customize Stack 3 Customize Stack 4"]
[]
["Customize"]
["Customize Stacks"]
["Customize Ticker"]
["Detach"]
["Recommendations"]
["1+1=11.Multiply your wealth now with multibaggers from poweryourtrade.com Subscribe Now"]
[]
["Power Your Trade"]
[]
["Quick View"]
["Customize Stacks Customize Ticker Detach Help Feedback"]
["Stocks in News"]
["Stocks Last Visited"]
["Watchlist"]
["Portfolio"]
["SENSEX NIFTY "]
[]
[]
[]
[]
["YOU ARE HERE > MONEYCONTROL > MARKETS > Refineries > Cash Flow - Reliance Industries"]
["Reliance Industries"]
["BSE: 500325|NSE: RELIANCE|ISIN: INE002A01018|SECTOR: Refineries"]
["SET ALERT"]
["| "]
[]
["ADD TO PORTFOLIO | "]
["WATCHLIST "]
["LIVE"]
["BSE"]
["Apr 18, 16:00"]
[1382.9]
["37.6 (2.79%)"]
["VOLUME 923,643"]
["LIVE"]
["NSE"]
["Apr 18, 15:59"]
[1385.95]
["42.2 (3.14%)"]
["VOLUME 17,960,482"]
[]
["Quote"]
["CHARTS"]
["NEWS"]
["All News"]
["Business"]
["Earnings"]
["Management Interviews"]
["Stock Advice"]
["Research Reports"]
["Sector"]
["COMMENTS"]
["ANNOUNCEMENTS"]
["CORPORATE ACTION"]
["Board Meetings"]
["AGM/EGM"]
["Dividends"]
["Bonus"]
["Rights"]
["Splits"]
["FINANCIALS"]
["Balance Sheet"]
["Profit & Loss"]
["Quarterly Results"]
["Half Yearly Results"]
["Nine Monthly Results"]
["Yearly Results"]
["Cash Flow"]
["Ratios"]
["Capital Structure"]
["Financial Graphs"]
["ANNUAL REPORT"]
["Directors Report"]
["Chairman's Speech"]
["Auditors Report"]
["Notes To Accounts"]
["Accounting Policy"]
["Finished Products"]
["Raw Materials"]
["Investment Structure"]
["SHAREHOLDING"]
["Shareholding Pattern"]
["Mutual Funds Holding"]
["Top Public Shareholders"]
["Promoter Holding"]
["Bulk Deals"]
["Large Deals"]
["PEERS"]
["Competition"]
["Data Bank new"]
["Latest Price"]
["Stock Performance"]
["Market Cap"]
["Net Sales"]
["Net Profit"]
["Total Assets"]
["Fund managers holdings"]
["COMPANY INFO"]
["Management"]
["History"]
["Background"]
["Listing"]
["Location"]
["ALERTS"]
["Widgets"]
["BROKER"]
["RESEARCH "]
[]
["Track Reliance on the go with the moneycontrol app"]
["Result In"]
["new Format"]
["Result In"]
["Old Format"]
["Download Annual Report PDF Format 2017 | 2016 | 2015 | 2014 | 2013 | 2012 | 2011 | 2010 "]
["Standalone"]
["Consolidated"]
[]
["Print/Copy to Excel : "]
[]
["Previous Years »"]
["Cash Flow of Reliance Industries","------------------- in Rs. Cr. -------------------"]
[null,"Mar '18","Mar '17","Mar '16","Mar '15","Mar '14"]
[]
[null,"12 mths","12 mths","12 mths","12 mths","12 mths"]
[]
["Net Profit Before Tax",45725,40777,35701,29468,27818]
["Net Cash From Operating Activities",62000,51450,0,35285,42160]
["Net Cash (used in)/from",-59109,-54949,0,-55998,-64013]
["Investing Activities"]
["Net Cash (used in)/from Financing Activities",-1914,-1639,0,-940,5530]
["Net (decrease)/increase In Cash and Cash Equivalents",977,-5138,-4679,-21653,-16323]
["Opening Cash & Cash Equivalents",1754,6892,11571,33224,49547]
["Closing Cash & Cash Equivalents",2731,1754,6892,11571,33224]
[]
[]
[]
["Source : Dion Global Solutions Limited"]
[]
["Results of Reliance"]
["News"]
["Results"]
["Estimates"]
["Analysis"]
["19.04.2019"]
["Reliance to start gas production from R-Cluster in 2nd half of FY21"]
["19.04.2019"]
["Accumulate Reliance Industries; target of Rs 1406: Prabhudas Lilladher"]
["18.04.2019"]
["Here is what analysts have to say on RIL Q4 FY19 earnings"]
["18.04.2019"]
["Reliance Industries Q4FY19 â€“ Consumer business takes up the baton"]
["More »"]
["18.04.2019"]
["RIL Q4 profit up 9.8% at Rs 10,362 crore; Jio FY19 profit jumps 300% to Rs 2,964 crore"]
["More »"]
["18.04.2019"]
["RIL Q4 preview: Retail, Jio to drive consolidated PAT, refining segment expected to drag"]
["12.04.2019"]
["Reliance Industries Q4 PAT may dip 2.5% YoY to Rs. 8,478.5 cr: Prabhudas Lilladher"]
["10.04.2019"]
["Reliance industries (Consolidated) Q4 PAT seen up 10% YoY to Rs. 10,338 cr: Kotak"]
["10.04.2019"]
["Reliance industries (Standalone) Q4 PAT may dip 1% YoY to Rs. 8,616 cr: Kotak"]
["More »"]
["No news."]
["Results of Refineries Sector"]
["News"]
["Results"]
["Estimates"]
["Analysis"]
["No news."]
["No news."]
["No news."]
["No news."]
["Quick Links for relianceindustries"]
["News","Corporate Action","Information","Financials","Annual Report","Peer Comparison"]
["Business","Board Meetings","Company History","Balance Sheet","Directors Report","Competition"]
["Earnings","AGM/EGM","Listing Info","Profit & Loss","Chairman's Speech","Price"]
["Mgmt Interviews ","Bonus","Locations","Quarterly Results","Auditors Report","Price Performance"]
["Announcements","Rights","Bulk Deals","Half Yearly Results","Notes to Accounts","Market Cap"]
["Stock Views","Splits","Large Deals","Nine Monthly Results","Finished Goods","Net Sales"]
["Brokerage Reports","Dividends","Shareholding","Yearly Results","Raw Materials","Net Profit"]
["Sector",null,"MF Holding","Cash Flow","Background","Total Assets"]
[null,null,"Top Shareholders","Ratios","Board of Directors","Historical Prices"]
[null,null,"Promoter Holding",null,"Capital Structure","Price of Reliance on previous budgets"]
["Related Searches relianceindustries Stock Price, Reliance Stock Quote, Reliance Results , Reliance News .. More »"]
["Follow moneycontrol"]
["Facebook Twitter RSS Wap SMS SMS Alert iPad iPhone Blackberry OVI AndroidWindow"]
["Explore Moneycontrol"]
["Stocks     A | B | C | D | E | F | G | H | I | J | K | L | M | N | O | P | Q | R | S | T | U | V | W | X | Y | Z | Others"]
["Mutual Funds     A | B | C | D | E | F | G | H | I | J | K | L | M | N | O | P | Q | R | S | T | U | V | W | X | Y | Z"]
["Live Sensex | Public Sector Banks | Market Statistics | Plan Insurance | Global Market | Business News | Mutual Fund | Best Portfolio Manager | Bse Sensex | Nse Nifty | Commodities Price | Silver Price/Rate in India | Gold Price/Rate in India | Crude Oil | USD to INR | Bank Fixed Deposits | Company Fixed Deposits | Small Savings Schemes | Bonds | Budget 2019 | Tax Calculator | RBI Credit Policy | News Archive | FAQs | Financial Glossary | Message Board | Moneybhai | Think India | History India | Latest News | IBNLive News | News in Hindi | Cricket News | Online Study Material | India News |Restaurants in Chennai | Online Shopping in India  | Cairn India | Euro | Infosys | Inflation | Silver | Glenmark Pharmaceuticals | Snapdeal | Starbucks | Narendra Modi | Crore | Clear Study Doubts | Education Franchisee Opportunity | Rss Feeds"]
["Site Map | About Us | Contact Us | Advertise | Bookmark | Disclaimer | Privacy Policy | Terms & Conditions | Careers"]
["Copyright © e-Eighteen.com Ltd. All rights reserved. Reproduction of news articles, photos, videos or any other content in whole or in part in any form or medium without express written permission of moneycontrol.com is prohibited."]